Workbook

Sheet Intro
A1: Document Purpose and Disclaimers
A2: W. Grammer, NRAO
A3: Updated: | B3: 2018-10-23
A5: The purpose of this document is to help summarize various receiver configuration options under study for a next-generation Very Large Array telescope (ngVLA), and compare and contrast their principal features and current predicted performance. In brief, these are the so-called 'Reference' configuration, and two wideband configurations. Details of these were presented at the US Radio Futures (Kavli II & III) meetings in 2016 and 2017, and at the URSI and AAS meetings in 2017 and 2018. Feed configurations have evolved for the Reference configuration, initially from mostly uncooled high-gain conical horns with 15 degree beam angle, to cooled low-gain conical and quad-ridged horns with ~55 degree beam angle.
A7: The overall aperture efficiencies for all bands assume the new shaping function for the antenna optics proposed by Lynn Baker in his report, "Analysis of ngVLA Design #6 With Ideal and Actual Feed", ngVLA Doc# 020.25.01.00.00-0001-REP, January 2018. For now, the overall efficiencies for quad-ridge type feeds are estimates: these will be analyzed with the new shaping function at a future date.
A9: In this revision of the document,Tsys for the Reference Configuration alone has been modified to include a noise contribution (~1 K) from the IRD module. Trx is still assumed to include only contributions from the Front End dewars. The Wideband configuration already has a contribution for this added.
A11: The values for (Tsys/η) shown in the Relative sensitivity plot depend on atmospheric water vapor, elevation angle, and the surface accuracy of the dish, the values of which are listed above the plot. All of these are editable, with three different choices for PWV selectable (1, 6 or 13 mm), and two choices for elevation angle (45 degrees or Zenith). The dish surface accuracy σ, shown at the top right, affects overall aperature efficiency η. The default value is 160 um, but is also editable. Changing these values automatically updates the values of (Tsys/η) on each of four plotted configurations.
A13: The following important disclaimers should be noted when using the information in this document: - The ngVLA receiver configurations presented are conceptual and preliminary: they are not a final design. - Predictions on ngVLA receiver and feed performance are also preliminary, and subject to change. - Assumptions listed for the antenna optics do not represent what will necessarily be used in a final design. - The work shown represents a snapshot in time, and can (and likely will) evolve and be refined.

Sheet Notes
A1: Notes and Revision History
A2: =Rev_date -> 2018-10-23 | B2: WLG
A4: GENERAL NOTES:
A5: 1. Sky temp (Tsky) is assumed for VLA site. PWV is from Butler (2016), and selectable as 1mm, 6mm (default) or 13mm.
A6: 2. Aperture efficiency includes all contributions from the feed and antenna (illumination, spillover, phase, surface, etc.)
A7: 3. Spillover and feed leg scattering are included in Tsys, where they can be predicted.
A8: 4. Surface accuracy is an editable parameter; changing it will update the overall aperture efficiencies.
A9: 5. Antenna elevation is selectable as either zenith or 45 degrees (default); dynamically changes Tsky and Tspill.
A10: 6. All configurations assume optimally-shaped offet-Gregorian, "feed arm low" antenna optics. Spillover estimates per L. Baker (2018).
A11: 7. The Array SEFD assumes an array of 244 x 18-meter and 19 x 6-meter diameter antennas.
A13: REVISION HISTORY (from ver. 4.0):
A14: 1. (4.1) Baseline config. Band 1-2 boundary changed from 3.9 to 3.5 GHz, to allow direct sampling of Band 1 at 7 Gsps.
A15: 2. (4.1) Baseline config. Band 2-3 boundary changed from 12.6 to 12.3 GHz, to keep Band 2 fractional BW to within 3.5:1.
A16: 3. (4.1) Baseline config. Band 3-4 boundary changed from 21 to 20.5 GHz, to keep Band 3 fractional BW to within 1.67:1.
A17: 4. (4.1) Baseline config. Band 4 upper frequency changed from 35 to 34 GHz, to keep Band 4 fractional BW to within 1.67:1.
A18: 5. (4.1) Baseline config. Band 2 moved from Dewar 'A' to Dewar 'B', for cleaner packaging, more even division of mass.
A19: 6. (4.2) Aperture efficiencies for Caltech QRFH taken from an approximate best-fit curve of their data, to remove the ripple.
A20: 7. (4.2) Spillover temperatures for Caltech QRFH taken from an approximate best-fit curve of their data, to remove the ripple.
A21: 8. (4.3) Aperture efficiencies for all bands were adjusted for a new mapping function by Lynn Baker (Jan. 2018).
A22: 9. (4.3) All configurations now include a weather radome and directional coupler for noise injection, by default.
A23: 10. (4.4) Trx has been refined for Bands 1-6 in the Reference configuration, and the 70-116 GHz band in the other two configurations.
A24: 11. (4.5) A PWV of 1mm is assumed by default in all performance plots for the 70-116 GHz band (UWB Configuration only, Band 3).
A25: 12. (4.6) A PWV of 1mm is assumed by default in all performance plots for the 70-116 GHz band (all configurations).
A26: 13. (4.7) T_LNA and T_RX are updated with results from the latest cascaded analysis and LNA device selection.
A27: 14. (4.8) Band 1 & 2 Trx, Tspill and aperture efficiency were updated, as well as Band 4 T_LNA, from revised cascade analysis.
A28: 15. (4.9) SEFD values updated for expanded ngVLA scope.
A29: 16. (4.10) Tsys on Reference tab increased by 1K across the board, to include the IRD (downconverter) contribution.

Sheet VLA
A1: EVLA Receivers and Antennas
A2: - All 8 bands have circularly-polarized outputs.
A3: - Trx includes contribution from both receiver and feedhorn, and Tsys includes a weather radome (T_RAD), for comparison with other configs.
A4: - Trx highlighted in red may need to be revised to better reflect averages from lab measurements.
A5: - Full feedhorn noise contribution over receiver test data is ~3K for L&S bands, ~1K for C&X bands, and 0K for Ku, K, Ka and Q bands.
A6: - Antenna is a symmetric Cassegrain, with highly-shaped optics.
A7: - Antenna aperture efficiency and spillover numbers are from EVLA Project Book and Memo series. A 45 degree elevation angle is assumed.
A8: - Antenna surface (Ruze) efficiency is included in the aperture efficiency shown. Surface accuracy assumed from EVLA specification (400 um).
A9: - L-band feed horn is a compact design that has lower illumination efficiency, to reduce spillover at low elevation angles.
A10: - Tsky values provided by B. Butler (NRAO), modeling opacity at VLA site, for zenith and 45 deg. elevations (selectable on Rel. Sensitivity tab).
B12: Band # | C12: Dewar # | D12: fL GHz | E12: fM GHz | F12: fH GHz | G12: fH: fL | H12: BW GHZ | I12: Feed Horn Properties | L12: OMT | M12: Pol. Out | N12: Aperture Eff., ηA | Q12: Spillover, K
I13: Temp | J13: L, in. | K13: ID, in. | N13: @ fL | O13: @ fM | P13: @ fH | Q13: @ fL | R13: @ fM | S13: @ fH
B14: L | C14: 1 | D14: 1.2 | E14: 1.6 | F14: 2 | G14: =F14/D14 -> 1.666666667 | H14: =F14-D14 -> 0.8 | I14: 300 | J14: 155 | K14: 57.8 | L14: QR | M14: Circ. | N14: 0.51 | O14: =0.43 -> 0.43 | P14: =0.49 -> 0.49 | Q14: 18.6 | R14: 15 | S14: 12
B15: S | C15: 2 | D15: 2 | E15: 3 | F15: 4 | G15: 2 | H15: 2 | I15: 300 | J15: 129.8 | K15: 42 | L15: QR | M15: Circ. | N15: 0.62 | O15: 0.66 | P15: 0.66 | Q15: 11 | R15: 8 | S15: 7
B16: C | C16: 3 | D16: 4 | E16: 6 | F16: 8 | G16: 2 | H16: 4 | I16: 300 | J16: 66 | K16: 22.1 | L16: QR | M16: Circ. | N16: 0.55 | O16: 0.65 | P16: 0.65 | Q16: 5 | R16: 5 | S16: 5
B17: X | C17: 4 | D17: 8 | E17: 10 | F17: 12 | G17: 1.5 | H17: 4 | I17: 300 | J17: 50.7 | K17: 18.5 | L17: QR | M17: Circ. | N17: =eApr_VLA_hifreq_noRuze*Ruze(D17,Sigma_VLA) -> 0.5696579835 | O17: 0.5639218505 | P17: 0.5569894016 | Q17: 6 | R17: 6 | S17: 6
B18: Ku | C18: 5 | D18: 12 | E18: 15 | F18: 18 | G18: 1.5 | H18: 6 | I18: 300 | J18: 33.3 | K18: 12.3 | L18: WG | M18: Circ. | N18: 0.5569894016 | O18: 0.5444494759 | P18: 0.5295056565 | Q18: 6 | R18: 6 | S18: 6
B19: K | C19: 6 | D19: 18 | E19: =AVERAGE(D19,F19) -> 22.25 | F19: 26.5 | G19: =F19/D19 -> 1.472222222 | H19: =F19-D19 -> 8.5 | I19: 300 | J19: 20.8 | K19: 8 | L19: WG | M19: Circ. | N19: 0.5295056565 | O19: 0.5046444043 | P19: 0.4760908044 | Q19: 6 | R19: 6 | S19: 6
B20: Ka | C20: 7 | D20: 26.5 | E20: =AVERAGE(D20,F20) -> 33.25 | F20: 40 | G20: 1.509433962 | H20: 13.5 | I20: 300 | J20: 14.3 | K20: 5.4 | L20: WG | M20: Circ. | N20: 0.4760908044 | O20: 0.4250588709 | P20: 0.3698987464 | Q20: 6 | R20: 6 | S20: 6
B21: Q | C21: 8 | D21: 40 | E21: 45 | F21: 50 | G21: 1.25 | H21: 10 | I21: 300 | J21: 7 | K21: 3 | L21: SP | M21: Circ. | N21: 0.3698987464 | O21: 0.3282421194 | P21: 0.2872111008 | Q21: 6 | R21: 6 | S21: 6
B23: Band # | C23: Dewar # | D23: TLNA, K | G23: ~TRAD (K) | H23: TRX, K | K23: TSKY, K | N23: TSYS, K | Q23: (TSYS/ηA), K
D24: @ fL | E24: @ fM | F24: @ fH | H24: @ fL | I24: @ fM | J24: @ fH | K24: @ fL | L24: @ fM | M24: @ fH | N24: @ fL | O24: @ fM | P24: @ fH | Q24: @ fL | R24: @ fM | S24: @ fH
B25: L | C25: 1 | D25: 5.5 | E25: 5.1 | F25: 5.9 | G25: 1.4 | H25: =10.8+T_feed_VLA -> 13.8 | I25: =9.9+T_feed_VLA -> 12.9 | J25: =14.3+T_feed_VLA -> 17.3 | K25: =Tsky_Lookup(D14,Tsky_Data_Table, PWV, PWV_Values, Elev_Angle) -> 4.4 | L25: 4.5 | M25: 4.5 | N25: =H25+K25+Q14+$G25 -> 38.2 | O25: 33.8 | P25: 35.2 | Q25: =N25/N14 -> 74.90196078 | R25: 78.60465116 | S25: 71.83673469
B26: S | C26: 2 | D26: 5.7 | E26: 6.2 | F26: 6.8 | G26: 1.4 | H26: =14+T_feed_VLA -> 17 | I26: =13.3+T_feed_VLA -> 16.3 | J26: =21.2+T_feed_VLA -> 24.2 | K26: 4.5 | L26: 4.5 | M26: 4.6 | N26: 33.9 | O26: 30.2 | P26: 37.2 | Q26: 54.67741935 | R26: 45.75757576 | S26: 56.36363636
B27: C | C27: 3 | D27: 5.8 | E27: 5 | F27: 5.3 | G27: 1.4 | H27: =(D27+5.5)+(T_feed_VLA-2) -> 12.3 | I27: =(E27+5.5)+(T_feed_VLA-2) -> 11.5 | J27: =(F27+5.5)+(T_feed_VLA-2) -> 11.8 | K27: 4.6 | L27: 4.7 | M27: 4.8 | N27: 23.3 | O27: 22.6 | P27: 23 | Q27: 42.36363636 | R27: 34.76923077 | S27: 35.38461538
B28: X | C28: 4 | D28: 7.2 | E28: 4.5 | F28: 6.6 | G28: 2 | H28: =10.8+(T_feed_VLA-2) -> 11.8 | I28: =9.7+(T_feed_VLA-2) -> 10.7 | J28: =13.9+(T_feed_VLA-2) -> 14.9 | K28: 4.8 | L28: 5 | M28: 5.3 | N28: 24.6 | O28: 23.7 | P28: 28.2 | Q28: 43.18380627 | R28: 42.0271 | S28: 50.6293296
B29: Ku | C29: 5 | D29: 7.8 | E29: 5 | F29: 8.2 | G29: 2 | H29: =16 -> 16 | I29: =10.8 -> 10.8 | J29: =15.1 -> 15.1 | K29: 5.3 | L29: 6 | M29: 7.8 | N29: 29.3 | O29: 24.8 | P29: 30.9 | Q29: 52.60423253 | R29: 45.55059946 | S29: 58.3563171
B30: K | C30: 6 | D30: 13.1 | E30: 8 | F30: 10 | G30: 3.5 | H30: 22.7 | I30: 12.7 | J30: 23.6 | K30: 7.8 | L30: 22.8 | M30: 12.1 | N30: 40 | O30: 45 | P30: 45.2 | Q30: 75.54215806 | R30: 89.17170113 | S30: 94.93987193
B31: Ka | C31: 7 | D31: 16.4 | E31: 11.3 | F31: 19.3 | G31: 3.5 | H31: 29.9 | I31: 16.5 | J31: 31.7 | K31: 12.1 | L31: 12.1 | M31: 17.8 | N31: 51.5 | O31: 38.1 | P31: 59 | Q31: 108.1726417 | R31: 89.63464265 | S31: 159.5031088
B32: Q | C32: 8 | D32: 10.9 | E32: 12.7 | F32: 14.6 | G32: 3.5 | H32: 35.2 | I32: 32.2 | J32: 42.8 | K32: 17.8 | L32: 28.4 | M32: 62.5 | N32: 62.5 | O32: 70.1 | P32: 114.8 | Q32: 168.9651577 | R32: 213.5618674 | S32: 399.7059991

Sheet VLA-like (hidden)
A1: EVLA-like Receivers (comparison only - not proposed)
A2: - Fractional bandwidths and technology from VLA receivers (except Q, W). Frequency ranges shifted up slightly.
A3: - Optimum noise performance: CDL LNAs, cooled to ~15K. Trx includes feed, window contributions.
A4: - Bands 1 & 2 assume OMTs cooled to 50K instead of 15K like on the VLA, resulting in a moderate noise penalty.
A5: - 1-50 GHz LNA data from M. Pospieszalski (2008); assumes lowest-noise devices. W-band LNA/RX noise temp data from IRAM.
A6: - Feed horn dimensions on all bands assume a subtended beam angle of 15 degrees on the subreflector (S. Srikanth)
A7: - Linearly-polarized outputs on all bands, like ALMA.
A8: - Tsky values provided by B. Butler (NRAO), modeling opacity at VLA site, for zenith and 45 deg. elevations (selectable on Rel. Sensitivity tab).
A9: - Antenna optics assumes unblocked aperture, offset feed (low), shaped optics, and a ground shield for spillover noise reduction.
A10: - Feed aperture efficiency uses VLBA Project Book values for feed illumination, spillover and phase.
A11: - Antenna surface (Ruze) efficiency is included in the aperture efficiency shown. Surface accuracy is editable - see Rel. Sensitivity tab.
A12: - Spillover noise temp vs. elevation based on model from S. Srikanth. Assumes offset Cassegrain optics, electrically large at all freqs.
B14: Band # | C14: Dewar # | D14: fL GHz | E14: fH GHz | F14: fH: fL | G14: BW GHZ | H14: Feed Horn Properties | K14: OMT | L14: Pol. Out | M14: TLNA, K
H15: Temp | I15: L (in.) | J15: ID (in.) | M15: @ fL | N15: @ fH
B16: 1 | C16: A | D16: 1.2 | E16: 2.4 | F16: =E16/D16 -> 2 | G16: =E16-D16 -> 1.2 | H16: 300 | I16: =(L_feed_freq/D16)*L_feed_length -> 100.7 | J16: =(L_feed_freq/D16)*L_feed_ID -> 43.8 | K16: QR | L16: Lin. | M16: 2.5 | N16: 3
B17: 2 | C17: B | D17: 2.5 | E17: 5 | F17: =E17/D17 -> 2 | G17: =E17-D17 -> 2.5 | H17: 300 | I17: =(L_feed_freq/D17)*L_feed_length -> 48.336 | J17: =(L_feed_freq/D17)*L_feed_ID -> 21.024 | K17: QR | L17: Lin. | M17: 3 | N17: 4
B18: 3 | C18: C | D18: 5 | E18: 10 | F18: 2 | G18: 5 | H18: 300 | I18: =(L_feed_freq/D18)*L_feed_length -> 24.168 | J18: =(L_feed_freq/D18)*L_feed_ID -> 10.512 | K18: QR | L18: Lin. | M18: 4 | N18: 5
B19: 4 | C19: D | D19: 10 | E19: 15 | F19: =E19/D19 -> 1.5 | G19: =E19-D19 -> 5 | H19: 300 | I19: =(Ku_feed_freq/D19)*Ku_feed_length -> 17.76 | J19: =(Ku_feed_freq/D19)*Ku_feed_ID -> 10.44 | K19: WG | L19: Lin. | M19: 5 | N19: 6
B20: 5 | C20: E | D20: 15 | E20: 22.5 | F20: =E20/D20 -> 1.5 | G20: =E20-D20 -> 7.5 | H20: 300 | I20: =(Ku_feed_freq/D20)*Ku_feed_length -> 11.84 | J20: =(Ku_feed_freq/D20)*Ku_feed_ID -> 6.96 | K20: WG | L20: Lin. | M20: 6 | N20: 8
B21: 6 | C21: E | D21: 22.5 | E21: 33.6 | F21: 1.493333333 | G21: 11.1 | H21: 300 | I21: =(Ku_feed_freq/D21)*Ku_feed_length -> 7.893333333 | J21: =(Ku_feed_freq/D21)*Ku_feed_ID -> 4.64 | K21: WG | L21: Lin. | M21: 8 | N21: 10
B22: 7 | C22: E | D22: 33.6 | E22: 50 | F22: 1.488095238 | G22: 16.4 | H22: 20 | I22: =(Ku_feed_freq/D22)*Ku_feed_length -> 5.285714286 | J22: =(Ku_feed_freq/D22)*Ku_feed_ID -> 3.107142857 | K22: WG | L22: Lin. | M22: 10 | N22: 14
B23: 8 | C23: E | D23: 70 | E23: 116 | F23: 1.657142857 | G23: 46 | H23: 20 | I23: =(Ku_feed_freq/D23)*Ku_feed_length -> 2.537142857 | J23: =(Ku_feed_freq/D23)*Ku_feed_ID -> 1.491428571 | K23: WG | L23: Lin. | M23: 45 | N23: 50
B25: Band # | C25: Dewar # | D25: TRX, K | F25: TSKY, K | H25: Spillover, K | J25: TSYS, K | L25: Aptr. Eff., ηA | N25: TSYS/ηA, K
D26: @ fL | E26: @ fH | F26: @ fL | G26: @ fH | H26: @ fL | I26: @ fH | J26: @ fL | K26: @ fH | L26: @ fL | M26: @ fH | N26: @ fL | O26: @ fH
B27: 1 | C27: A | D27: =6+Warmer_OMT_Noise_Penalty -> 10 | E27: =7+Warmer_OMT_Noise_Penalty -> 11 | F27: =Tsky_Lookup(D16,Tsky_Data_Table, PWV, PWV_Values,Elev_Angle) -> 4.4 | G27: 4.5 | H27: =Spill_Cass(Elev_Angle) -> 2.706813648 | I27: 2.706813648 | J27: =D27+F27+H27 -> 17.10681365 | K27: 18.20681365 | L27: =eAptr_VLBA_unblocked*Ruze(D16,Sigma_ngVLA) -> 0.8392478393 | M27: 0.8390847783 | N27: =J27/L27 -> 20.38350633 | O27: =K27/M27 -> 21.69841966
B28: 2 | C28: B | D28: =7+Warmer_OMT_Noise_Penalty -> 11 | E28: =8+Warmer_OMT_Noise_Penalty -> 12 | F28: 4.5 | G28: 4.6 | H28: 2.706813648 | I28: 2.706813648 | J28: 18.20681365 | K28: 19.30681365 | L28: 0.839066285 | M28: 0.8383589377 | N28: =J28/L28 -> 21.6988979 | O28: =K28/M28 -> 23.02929304
B29: 3 | C29: C | D29: 8 | E29: 10 | F29: 4.6 | G29: 5 | H29: 2.706813648 | I29: 2.706813648 | J29: 15.30681365 | K29: 17.70681365 | L29: 0.8383589377 | M29: 0.8355355064 | N29: 18.25806699 | O29: 21.19217377
B30: 4 | C30: D | D30: 9 | E30: 10 | F30: 5 | G30: 6 | H30: 2.706813648 | I30: 2.706813648 | J30: 16.70681365 | K30: 18.70681365 | L30: 0.8355355064 | M30: 0.8308509026 | N30: 19.99533655 | O30: 22.51524743
B31: 5 | C31: E | D31: 10 | E31: 13 | F31: 6 | G31: 23 | H31: 2.706813648 | I31: 2.706813648 | J31: 18.70681365 | K31: 38.70681365 | L31: 0.8308509026 | M31: 0.8204063517 | N31: 22.51524743 | O31: 47.18005116
B32: 6 | C32: E | D32: 13 | E32: 19 | F32: 23 | G32: 12.2 | H32: 2.706813648 | I32: 2.706813648 | J32: 38.70681365 | K32: 33.90681365 | L32: 0.8204063517 | M32: 0.7977460771 | N32: 47.18005116 | O32: 42.50326592
B33: 7 | C33: E | D33: 19 | E33: 27 | F33: 12.2 | G33: 62.5 | H33: 2.706813648 | I33: 2.706813648 | J33: 33.90681365 | K33: 92.20681365 | L33: 0.7977460771 | M33: 0.7500359464 | N33: 42.50326592 | O33: 122.936526
B34: 8 | C34: E | D34: =10+M23 -> 55 | E34: =20+N23 -> 70 | F34: 74.6 | G34: 122.6 | H34: 2.706813648 | I34: 2.706813648 | J34: 132.3068136 | K34: 195.3068136 | L34: =eAptr_3mm*Ruze(D23,Sigma_ngVLA) -> 0.6328883471 | M34: =eAptr_3mm*Ruze(E23,Sigma_ngVLA) -> 0.4307148075 | N34: 209.0523775 | O34: 453.4481059

Sheet Reference
A1: ngVLA 'Reference' Receiver Configuration
A2: - Outputs on all bands are linearly-polarized, like ALMA. Allows wider fractional bandwidth than with CP outputs
A3: - All bands now include an extra 1K contribution to Tsys from the IRD (downconverter/digitizer) module.
A4: - Bands 3-5 are waveguide-bandwidth (<= 1.67:1), as originally proposed by S. Srikanth.
A5: - Bands 3-6 feed dimensions (55 degree beam angle) scaled from L-band reference horn dimensions provided by Lynn Baker, May 2017
A6: - Bands 3-6 illumination efficiency modeled is for ngVLA antenna optics w/new mapping function (L. Baker, 2018).
A7: - Bands 3-6 Trx includes contributions from: radome, window, IR filter, feed, OMT, cal coupler, LNA and waveguides.
A8: - Bands 1-2 assume optimized wideband (~3.5:1) quad-ridge Caltech feeds and LNAs. Band 1 feed cooled to ~80K, Band 2 is ~20K.
A9: - Bands 1-2 aperture efficiency and spillover values from optimized profile (Weiye/Weinreb, June 2017). Use point frequency values.
A10: - Band 1-2 values for aperture efficiency assume the SKA antenna mapping function, rather than the ngVLA's. Analysis of that configuration is still pending.
A11: - Bands 1-2 Trx includes contributions from: radome/window, IR filter(s), feed, cal coupler, LNA and coax cables.
A12: - Band 6 (W-band) LNA and receiver noise temp data from D. Cuadrado (U. of Manchester) and S. Weinreb (Caltech).
A13: - Tsky values provided by B. Butler (NRAO), modeling opacity at VLA site, for zenith and 45 deg. elevations (selectable on Rel. Sensitivity tab).
A14: - Antenna optics assumes unblocked aperture, offset feed (low) Gregorian, shaped optics, and a ground shield for spillover noise reduction.
A15: - Antenna surface (Ruze) efficiency is included in the aperture efficiency shown. Surface accuracy is editable - see Rel. Sensitivity tab.
A16: - Bands 3-6 spillover noise temp vs. elevation based on modeling from L. Baker (2018), assuming a secondary mirror of 3.5m aperture.
A17: - Band 6 assumes a PWV of 1mm by default when estimating Tsky (i.e., best-case observing conditions)
B19: Band # | C19: Dewar # | D19: fL GHz | E19: fM GHz | F19: fH GHz | G19: fH: fL | H19: BW GHZ | I19: Feed Horn Properties | M19: OMT | N19: Pol. Out
I20: Temp | J20: θ, deg | K20: L, in. | L20: D, in.
B21: 1 | C21: A | D21: 1.2 | E21: =SQRT(D21*F21) -> 2.049390153 | F21: 3.5 | G21: =F21/D21 -> 2.916666667 | H21: =F21-D21 -> 2.3 | I21: 80 | J21: 58 | K21: ='WB Feed'!K20*('WB Feed'!D20/Reference!D21) -> 13 | L21: ='WB Feed'!L20*('WB Feed'!D20/Reference!D21) -> 14.173 | M21: QR | N21: Lin.
B22: 2 | C22: B | D22: 3.5 | E22: 6.561249881 | F22: 12.3 | G22: 3.514285714 | H22: 8.8 | I22: 20 | J22: 58 | K22: ='WB Feed'!K21*('WB Feed'!D21/Reference!D22) -> 4.457142857 | L22: ='WB Feed'!L21*('WB Feed'!D21/Reference!D22) -> 4.859314286 | M22: QR | N22: Lin.
B23: 3 | C23: B | D23: 12.3 | E23: 15.87923172 | F23: 20.5 | G23: 1.666666667 | H23: 8.2 | I23: =IF(Feed_type="Narrow",300,20) -> 20 | J23: =Beam_HA_wide -> 55 | K23: =(DVA1_feed_freq/$D23)*DVA1_feed_length -> 1.137691057 | L23: =(DVA1_feed_freq/$D23)*DVA1_feed_OD -> 2.086634146 | M23: WG | N23: Lin.
B24: 4 | C24: B | D24: 20.5 | E24: 26.40075756 | F24: 34 | G24: 1.658536585 | H24: 13.5 | I24: =IF(Feed_type="Narrow",300,20) -> 20 | J24: =Beam_HA_wide -> 55 | K24: =(DVA1_feed_freq/$D24)*DVA1_feed_length -> 0.6826146341 | L24: =(DVA1_feed_freq/$D24)*DVA1_feed_OD -> 1.251980488 | M24: WG | N24: Lin.
B25: 5 | C25: B | D25: 30.5 | E25: 39.24601891 | F25: 50.5 | G25: 1.655737705 | H25: 20 | I25: =IF(Feed_type="Narrow",20,20) -> 20 | J25: =Beam_HA_wide -> 55 | K25: =(DVA1_feed_freq/$D25)*DVA1_feed_length -> 0.4588065574 | L25: =(DVA1_feed_freq/$D25)*DVA1_feed_OD -> 0.841495082 | M25: WG | N25: Lin.
B26: 6 | C26: B | D26: 70 | E26: 90.11104261 | F26: 116 | G26: 1.657142857 | H26: 46 | I26: =IF(Feed_type="Narrow",20,20) -> 20 | J26: =Beam_HA_wide -> 55 | K26: =(DVA1_feed_freq/$D26)*DVA1_feed_length -> 0.1999085714 | L26: =(DVA1_feed_freq/$D26)*DVA1_feed_OD -> 0.3666514286 | M26: WG | N26: Lin.
B28: Band # | C28: Dewar # | D28: Aperture Eff., ηA | G28: Spillover, K | J28: TLNA, K | M28: TRX, K
D29: @ fL | E29: @ fM | F29: @ fH | G29: @ fL | H29: @ fM | I29: @ fH | J29: @ fL | K29: @ fM | L29: @ fH | M29: @ fL | N29: @ fM | O29: @ fH
B30: 1 | C30: A | D30: =Ruze(D21,Sigma_ngVLA)*0.8 -> 0.7999481849 | E30: =Ruze(E21,Sigma_ngVLA)*0.795 -> 0.7948498264 | F30: =Ruze(F21,Sigma_ngVLA)*0.74 -> 0.7395923697 | G30: 12.8 | H30: 10.1 | I30: 4 | J30: 2.6 | K30: 2.8 | L30: 5 | M30: 9.9 | N30: 10.3 | O30: 13.8
B31: 2 | C31: B | D31: =Ruze(D22,Sigma_ngVLA)*0.8 -> 0.7995593186 | E31: =Ruze(E22,Sigma_ngVLA)*0.78 -> 0.778491082 | F31: =Ruze(F22,Sigma_ngVLA)*0.77 -> 0.7647779337 | G31: 12.8 | H31: 7 | I31: 3.9 | J31: 6.7 | K31: 7.2 | L31: 5 | M31: 13.4 | N31: 15.4 | O31: 14.4
B32: 3 | C32: B | D32: =Ruze(D23,Sigma_ngVLA)*(eAptr_ngVLArev6_fL) -> 0.8432421632 | E32: =Ruze(E23,Sigma_ngVLA)*(eAptr_ngVLArev6_fM) -> 0.8740305996 | F32: =Ruze(F23,Sigma_ngVLA)*(eAptr_ngVLAver6_fH) -> 0.8625404992 | G32: =Spill_Greg(Elev_Angle) -> 4.0955 | H32: 4.0955 | I32: 4.0955 | J32: 5 | K32: 8 | L32: 8.7 | M32: 13.9 | N32: 16.9 | O32: 18.6
B33: 4 | C33: B | D33: =Ruze(D24,Sigma_ngVLA)*(eAptr_ngVLArev6_fL) -> 0.8331022569 | E33: =Ruze(E24,Sigma_ngVLA)*(eAptr_ngVLArev6_fM) -> 0.8567156672 | F33: =Ruze(F24,Sigma_ngVLA)*(eAptr_ngVLAver6_fH) -> 0.8344627938 | G33: 4.0955 | H33: 4.0955 | I33: 4.0955 | J33: 5.7 | K33: 6 | L33: 7.8 | M33: 15.4 | N33: 16.2 | O33: 19.5
B34: 5 | C34: B | D34: =Ruze(D25,Sigma_ngVLA)*(eAptr_ngVLArev6_fL) -> 0.8142086448 | E34: =Ruze(E25,Sigma_ngVLA)*(eAptr_ngVLArev6_fM) -> 0.8248295867 | F34: =Ruze(F25,Sigma_ngVLA)*(eAptr_ngVLAver6_fH) -> 0.7837381407 | G34: 4.0955 | H34: 4.0955 | I34: 4.0955 | J34: 7.8 | K34: 8.4 | L34: 14.1 | M34: 19.1 | N34: 20.4 | O34: 26.5
B35: 6 | C35: B | D35: =Ruze(D26,Sigma_ngVLA)*(eAptr_ngVLArev6_fL) -> 0.681065019 | E35: =Ruze(E26,Sigma_ngVLA)*(eAptr_ngVLArev6_fM) -> 0.6135246496 | F35: =Ruze(F26,Sigma_ngVLA)*(eAptr_ngVLAver6_fH) -> 0.4798797927 | G35: 4.0955 | H35: 4.0955 | I35: 4.0955 | J35: 25 | K35: 26 | L35: 42 | M35: 50.6 | N35: 49 | O35: 72.6
B37: Band # | C37: Dewar # | D37: TSKY, K | G37: TSYS, K | J37: (TSYS/ηA), K | M37: Array SEFD, Jy
D38: @ fL | E38: @ fM | F38: @ fH | G38: @ fL | H38: @ fM | I38: @ fH | J38: @ fL | K38: @ fM | L38: @ fH | M38: @ fL | N38: @ fM | O38: @ fH
B39: 1 | C39: A | D39: =Tsky_Lookup(D21,Tsky_Data_Table, PWV, PWV_Values, Elev_Angle) -> 4.4 | E39: 4.5 | F39: 4.6 | G39: =M30+D39+G30+T_IRD -> 28.1 | H39: 25.9 | I39: 23.4 | J39: =G39/D30 -> 35.12727516 | K39: 32.58477154 | L39: 31.63905005 | M39: =2*k*J39/Ao_array -> 1.548058727 | N39: =2*k*K39/Ao_array -> 1.436010613 | O39: 1.394332675
B40: 2 | C40: B | D40: 4.6 | E40: 4.7 | F40: 5.3 | G40: 31.8 | H40: 28.1 | I40: 24.6 | J40: 39.77190843 | K40: 36.09546808 | L40: 32.16620004 | M40: 1.752747677 | N40: 1.590726981 | O40: 1.417564171
B41: 3 | C41: B | D41: 5.3 | E41: 6.3 | F41: 13.6 | G41: 24.2955 | H41: 28.2955 | I41: 37.2955 | J41: 28.81200806 | K41: 32.37358053 | L41: 43.2391291 | M41: 1.269744958 | N41: 1.426703427 | O41: 1.905548064
B42: 4 | C42: B | D42: 13.6 | E42: 12.1 | F42: 12.4 | G42: 34.0955 | H42: 33.3955 | I42: 36.9955 | J42: 40.92594843 | K42: 38.98084426 | L42: 44.33451111 | M42: 1.80360621 | N42: 1.717885486 | O42: 1.953821539
B43: 5 | C43: B | D43: 11.1 | E43: 16.9 | F43: 70.3 | G43: 35.2955 | H43: 42.3955 | I43: 101.8955 | J43: 43.34945376 | K43: 51.39910193 | L43: 130.0121746 | M43: 1.91041007 | N43: 2.265157999 | O43: 5.729635465
B44: 6 | C44: B | D44: =Tsky_Lookup(D26,Tsky_Data_Table, "1mm", PWV_Values, Elev_Angle) -> 68.3 | E44: =Tsky_Lookup(E26,Tsky_Data_Table, "1mm", PWV_Values, Elev_Angle) -> 15.4 | F44: =Tsky_Lookup(F26,Tsky_Data_Table, "1mm", PWV_Values, Elev_Angle) -> 112.3 | G44: 123.9955 | H44: 69.4955 | I44: 189.9955 | J44: 182.0611785 | K44: 113.2725475 | L44: 395.9231101 | M44: 8.023434638 | N44: 4.991920234 | O44: 17.4483282

Sheet WB Feed
A1: ngVLA Wideband (WB) Receiver Configuration
A2: - Outputs on all bands are linearly-polarized, like ALMA. Allows wider fractional bandwidth than with CP outputs
A3: - Band configuration originally proposed by S. Weinreb (Caltech), August 2016
A4: - Bands 1-3 use wideband (~3.5:1) Caltech quad-ridge feeds and LNAs. Band 1 feed cooled to ~80K, others to ~20K.
A5: - Bands 1-3 feed horn dimensions based on a subtended beam angle of 58 degrees to the subreflector.
A6: - Band 4 assumes wide-angle corrugated feed (L. Baker). LNA and RX noise temp data from D. Cuadrado (U. of Manchester) and S. Weinreb.
A7: - Band 4 illumination efficiency modeled is for ngVLA antenna optics w/new mapping function (L. Baker, 2018).
A8: - Bands 1-3 aperture efficiency and spillover values from optimized profile (Weiye/Weinreb, June 2017).
A9: - The values highlighted in red assume the SKA antenna mapping function, rather than the ngVLA's. Analysis of that configuration is still pending.
A10: - Bands 1-3 Trx includes window+IR filter, feed, coax losses (4-8K); also cal coupler and post-amplifier (1.5+0.5K/2.5+0.5K/9+1K).
A11: - Band 3 Tsys has a separate contribution from a weather radome. On Band 4 already has this built in to Tsys; Bands 1 & 2 don't have one.
A12: - Tsky values provided by B. Butler (NRAO), modeling opacity at VLA site, for zenith and 45 deg. elevations (selectable on Rel. Sensitivity tab).
A13: - Antenna optics assumes unblocked aperture, offset feed (low) Gregorian, shaped optics, and a ground shield for spillover noise reduction.
A14: - Antenna surface (Ruze) efficiency is included in the aperture efficiency shown. Surface accuracy is editable - see Rel. Sensitivity tab.
A15: - Band 4 spillover noise temp vs. elevation based on modeling from L. Baker (2018), assuming a secondary mirror of 3.5m aperture.
A16: - Band 4 assumes a PWV of 1mm by default when estimating Tsky (i.e., best-case observing conditions)
B18: Band # | C18: Dewar # | D18: fL GHz | E18: fM1 GHz | F18: fM2 GHz | G18: fH GHz | H18: fH: fL | I18: BW GHZ | J18: Feed Horn Properties | M18: OMT
J19: Temp | K19: L, in. | L19: ID, in.
B20: 1 | C20: A | D20: 1.2 | E20: =SQRT(D20*G20) -> 2.244994432 | F20: 3.4 | G20: 4.2 | H20: =G20/D20 -> 3.5 | I20: =G20-D20 -> 3 | J20: 80 | K20: =(QR_WB_freq/D20)*QR_WB_Len -> 13 | L20: =(QR_WB_freq/D20)*QR_WB_ID -> 14.173 | M20: none
B21: 2 | C21: A | D21: 4.2 | E21: 8 | F21: 10 | G21: 15 | H21: 3.571428571 | I21: =G21-D21 -> 10.8 | J21: 20 | K21: =(QR_WB_freq/D21)*QR_WB_Len -> 3.714285714 | L21: =(QR_WB_freq/D21)*QR_WB_ID -> 4.049428571 | M21: none
B22: 3 | C22: A | D22: 15 | E22: 23 | F22: 35 | G22: 50 | H22: 3.333333333 | I22: 35 | J22: 20 | K22: =(QR_WB_freq/D22)*QR_WB_Len -> 1.04 | L22: =(QR_WB_freq/D22)*QR_WB_ID -> 1.13384 | M22: none
B23: 4 | C23: A | D23: 70 | E23: 90.11104261 | F23: 105 | G23: 116 | H23: 1.657142857 | I23: 46 | J23: 20 | K23: =(Ku_feed_freq/D23)*Ku_feed_length -> 2.537142857 | L23: =(Ku_feed_freq/D23)*Ku_feed_ID -> 1.491428571 | M23: WG
B25: Band # | C25: Dewar # | D25: Aperture Eff., ηA | H25: Spillover, K | L25: ~TRAD (K)
D26: @ fL | E26: @ fM1 | F26: @ fM2 | G26: @ fH | H26: @ fL | I26: @ fM1 | J26: @ fM2 | K26: @ fH
B27: 1 | C27: A | D27: =0.8*Ruze(D20,Sigma_ngVLA) -> 0.7999481849 | E27: =0.79*Ruze(E20,Sigma_ngVLA) -> 0.7898209284 | F27: =0.725*Ruze(F20,Sigma_ngVLA) -> 0.7246231216 | G27: =0.78*Ruze(G20,Sigma_ngVLA) -> 0.7793813583 | H27: 12.8 | I27: 9.4 | J27: 4.6 | K27: 3.9 | L27: 0
B28: 2 | C28: A | D28: =0.8*Ruze(D21,Sigma_ngVLA) -> 0.7993654957 | E28: =0.79*Ruze(E21,Sigma_ngVLA) -> 0.7877290875 | F28: =0.725*Ruze(F21,Sigma_ngVLA) -> 0.7217462818 | G28: =0.78*Ruze(G21,Sigma_ngVLA) -> 0.7721458421 | H28: 12.8 | I28: 9.4 | J28: 4.8 | K28: 4 | L28: 0
B29: 3 | C29: A | D29: =0.8*Ruze(D22,Sigma_ngVLA) -> 0.7919444534 | E29: =0.79*Ruze(E22,Sigma_ngVLA) -> 0.771424333 | F29: =0.725*Ruze(F22,Sigma_ngVLA) -> 0.6861328738 | G29: =0.78*Ruze(G22,Sigma_ngVLA) -> 0.6970409921 | H29: 10.7 | I29: 4 | J29: 4.8 | K29: 4 | L29: 3.5
B30: 4 | C30: A | D30: =eAptr_ngVLArev6_fL*Ruze(D23,Sigma_ngVLA) -> 0.681065019 | E30: =eAptr_ngVLArev6_fM*Ruze(E23,Sigma_ngVLA) -> 0.6135246496 | F30: =eAptr_ngVLArev6_fM*Ruze(F23,Sigma_ngVLA) -> 0.5383742189 | G30: =eAptr_ngVLAver6_fH*Ruze(G23,Sigma_ngVLA) -> 0.4798797927 | H30: =Spill_Greg(Elev_Angle) -> 4.0955 | I30: =Spill_Greg(Elev_Angle) -> 4.0955 | J30: =Spill_Greg(Elev_Angle) -> 4.0955 | K30: =Spill_Greg(Elev_Angle) -> 4.0955 | L30: 0
B32: Band # | C32: Dewar # | D32: TLNA, K | H32: TRX, K | L32: TSKY, K
D33: @ fL | E33: @ fM1 | F33: @ fM2 | G33: @ fH | H33: @ fL | I33: @ fM1 | J33: @ fM2 | K33: @ fH | L33: @ fL | M33: @ fM1 | N33: @ fM2 | O33: @ fH
B34: 1 | C34: A | D34: 3 | E34: 3 | F34: 3 | G34: 4 | H34: =2+1+1+D34+2 -> 9 | I34: =2+2+1+E34+2 -> 10 | J34: =2+2+1+F34+2 -> 10 | K34: =2+2+1+G34+2 -> 11 | L34: =Tsky_Lookup(D20,Tsky_Data_Table, PWV, PWV_Values, Elev_Angle) -> 4.4 | M34: 4.5 | N34: 4.6 | O34: 4.6
B35: 2 | C35: A | D35: 6 | E35: 6 | F35: 7 | G35: 8 | H35: =3+1+1+D35+3 -> 14 | I35: =3+1+1+E35+3 -> 14 | J35: =3+1+1+F35+3 -> 15 | K35: =3+1+2+G35+3 -> 17 | L35: 4.6 | M35: 4.8 | N35: 5 | O35: 6
B36: 3 | C36: A | D36: 12 | E36: 12 | F36: 12 | G36: 20 | H36: =3+1+2+D36+10 -> 28 | I36: =3+1+2+E36+10 -> 28 | J36: =3+2+2+F36+10 -> 29 | K36: =3+3+2+G36+10 -> 38 | L36: 6 | M36: 22.1 | N36: 13 | O36: 62.5
B37: 4 | C37: A | D37: 25 | E37: 26 | F37: 26.5 | G37: 42 | H37: 50.6 | I37: 48.8 | J37: 51 | K37: 72.6 | L37: =Tsky_Lookup(D23,Tsky_Data_Table, "1mm", PWV_Values, Elev_Angle) -> 68.3 | M37: =Tsky_Lookup(E23,Tsky_Data_Table, "1mm", PWV_Values, Elev_Angle) -> 15.4 | N37: =Tsky_Lookup(F23,Tsky_Data_Table, "1mm", PWV_Values, Elev_Angle) -> 16.9 | O37: =Tsky_Lookup(G23,Tsky_Data_Table, "1mm", PWV_Values, Elev_Angle) -> 112.3
B39: Band # | C39: Dewar # | D39: TSYS, K | H39: (TSYS/ηA), K | L39: Array SEFD, Jy
D40: @ fL | E40: @ fM1 | F40: @ fM2 | G40: @ fH | H40: @ fL | I40: @ fM1 | J40: @ fM2 | K40: @ fH | L40: @ fL | M40: @ fM1 | N40: @ fM2 | O40: @ fH
B41: 1 | C41: A | D41: =H34+L34+H27+$L27 -> 26.2 | E41: 23.9 | F41: 19.2 | G41: 19.5 | H41: =D41/D27 -> 32.75212132 | I41: 30.26002368 | J41: 26.49653237 | K41: 25.019844 | L41: =2*k*H41/Ao_array -> 1.443385717 | M41: 1.333558995 | N41: 1.167701964 | O41: 1.102624319
B42: 2 | C42: A | D42: 31.4 | E42: 28.2 | F42: 24.8 | G42: 27 | H42: 39.28115508 | I42: 35.79910968 | J42: 34.36110531 | K42: 34.96748739 | L42: 1.731120181 | M42: 1.577666469 | N42: 1.514293628 | O42: 1.541016882
B43: 3 | C43: A | D43: 48.2 | E43: 57.6 | F43: 50.3 | G43: 108 | H43: 60.86285445 | I43: 74.6670769 | J43: 73.30941559 | K43: 154.9406724 | L43: 2.682225494 | M43: 3.290577464 | N43: 3.230745342 | O43: 6.828234157
B44: 4 | C44: A | D44: 122.9955 | E44: 68.2955 | F44: 71.9955 | G44: 188.9955 | H44: 180.5928899 | I44: 111.3166358 | J44: 133.7276145 | K44: 393.8392549 | L44: 7.958727172 | M44: 4.905723225 | N44: 5.89337487 | O44: 17.35649272

Sheet UWB Feed
A1: ngVLA Ultra-Wideband (UWB) Receiver Configuration
A2: - Outputs on all bands are linearly-polarized, like ALMA. Allows wider fractional bandwidth than with CP outputs
A3: - Band configuration proposed jointly by Caltech/JPL in 2015.
A4: - Bands 1-2 assume Caltech/JPL-designed dielectric-loaded QR feeds and JPL/OMMIC LNAs. Aperture efficiency and noise temps are estimates.
A5: - Bands 1-2 feed horn dimensions based on a subtended beam angle of 49 degrees to the subreflector.
A6: - Band 3 assumes a wide-angle corrugated feed (L. Baker). LNA and RX noise temp data from D. Cuadrado (U. of Manchester) and S. Weinreb.
A7: - Band 1 feed is cooled to ~80K; Bands 2 & 3 to ~20K.
A8: - Trx includes window+IR filter, feed and coax losses. Does not currently include cal coupler, weather radome, post-amplifier.
A9: - Tsky values provided by B. Butler (NRAO), modeling opacity at VLA site, for zenith and 45 deg. elevations (selectable on Rel. Sensitivity tab).
A10: - Tsky values for W-band (Band 3) only assume 1mm PWV as default, like the Reference or Wideband configurations.
A11: - Antenna optics assumes unblocked aperture, offset feed (low) Gregorian, shaped optics, and a ground shield for spillover noise reduction.
A12: - Antenna surface (Ruze) efficiency is included in the aperture efficiency shown. Surface accuracy is editable - see Rel. Sensitivity tab.
A13: - Spillover noise temp vs. elevation based on modeling from L. Baker (2018), assuming a secondary mirror of 3.5m aperture.
B15: Band # | C15: Dewar # | D15: fL GHz | E15: fM1 GHz | F15: fM2 GHz | G15: fM3 GHz | H15: fH GHz | I15: fH: fL | J15: BW GHZ | K15: Feed Horn Properties | N15: OMT | O15: Pol. Out | P15: Aperture Eff., ηA
K16: Temp | L16: L, in. | M16: ID, in. | P16: @ fL | Q16: @ fM1 | R16: @ fM2 | S16: @ fM3 | T16: @ fH
B17: 1 | C17: A | D17: 1.2 | E17: 3 | F17: 5 | G17: 6 | H17: 8 | I17: =H17/D17 -> 6.666666667 | J17: =H17-D17 -> 6.8 | K17: 80 | L17: =(QR_WB_freq/D17)*QR_WB_Len -> 13 | M17: =(QR_WB_freq/D17)*QR_WB_ID -> 14.173 | N17: QR | O17: Lin. | P17: =0.76*Ruze(D17,Sigma_ngVLA) -> 0.7599507756 | Q17: =0.68*Ruze(E17, Sigma_ngVLA) -> 0.6797247788 | R17: =0.68*Ruze(F17,Sigma_ngVLA) -> 0.6792357718 | S17: =0.68*Ruze(G17,Sigma_ngVLA) -> 0.6788997836 | T17: =0.64*Ruze(H17, Sigma_ngVLA) -> 0.6381602734
B18: 2 | C18: A | D18: 8 | E18: 15 | F18: 23 | G18: 32 | H18: 48 | I18: =H18/D18 -> 6 | J18: =H18-D18 -> 40 | K18: 20 | L18: =(QR_WB_freq/D18)*QR_WB_Len -> 1.95 | M18: =(QR_WB_freq/D18)*QR_WB_ID -> 2.12595 | N18: QR | O18: Lin. | P18: =0.76*Ruze(D18,Sigma_ngVLA) -> 0.7578153247 | Q18: =0.69*Ruze(E18, Sigma_ngVLA) -> 0.6830520911 | R18: =0.68*Ruze(F18,Sigma_ngVLA) -> 0.6640108183 | S18: =0.68*Ruze(G18,Sigma_ngVLA) -> 0.6493899617 | T18: =0.66*Ruze(H18, Sigma_ngVLA) -> 0.5950266491
B19: 3 | C19: A | D19: 70 | E19: 80 | F19: 90 | G19: 105 | H19: 116 | I19: =H19/D19 -> 1.657142857 | J19: =H19-D19 -> 46 | K19: 20 | L19: =(Ku_feed_freq/D19)*Ku_feed_length -> 2.537142857 | M19: =(Ku_feed_freq/D19)*Ku_feed_ID -> 1.491428571 | N19: WG | O19: Lin. | P19: =eAptr_ngVLArev6_fL*Ruze(D19,Sigma_ngVLA) -> 0.681065019 | Q19: =eAptr_ngVLArev6_fL*Ruze(E19,Sigma_ngVLA) -> 0.6366295666 | R19: =eAptr_ngVLArev6_fM*Ruze(F19,Sigma_ngVLA) -> 0.6140768233 | S19: =eAptr_ngVLArev6_fM*Ruze(G19,Sigma_ngVLA) -> 0.5383742189 | T19: =eAptr_ngVLAver6_fH*Ruze(H19,Sigma_ngVLA) -> 0.4798797927
B21: Band # | C21: Dewar # | D21: Spillover, K | I21: TLNA, K | N21: TRX, K
D22: @ fL | E22: @ fM1 | F22: @ fM2 | G22: @ fM3 | H22: @ fH | I22: @ fL | J22: @ fM1 | K22: @ fM2 | L22: @ fM3 | M22: @ fH | N22: @ fL | O22: @ fM1 | P22: @ fM2 | Q22: @ fM3 | R22: @ fH
B23: 1 | C23: A | D23: =Spill_Greg(Elev_Angle) -> 4.0955 | E23: 4.0955 | F23: 4.0955 | G23: 4.0955 | H23: 4.0955 | I23: 3 | J23: 3 | K23: 4 | L23: 5 | M23: 6 | N23: =3+2+2+I23 -> 10 | O23: =3+2+2+J23 -> 10 | P23: =3+2+2+K23 -> 11 | Q23: =3+2+2+L23 -> 12 | R23: =3+2+2+M23 -> 13
B24: 2 | C24: A | D24: 4.0955 | E24: 4.0955 | F24: 4.0955 | G24: 4.0955 | H24: 4.0955 | I24: 12 | J24: 12 | K24: 12 | L24: 12 | M24: 20 | N24: =1+1+3+1+I24+1 -> 19 | O24: =2+1+3+2+J24+2 -> 22 | P24: =3+1+3+2+K24+3 -> 24 | Q24: =3+1+3+3+L24+3 -> 25 | R24: =3+1+3+3+M24+4 -> 34
B25: 3 | C25: A | D25: 4.0955 | E25: 4.0955 | F25: 4.0955 | G25: 4.0955 | H25: 4.0955 | I25: 25 | J25: 26.5 | K25: 26 | L25: 26.5 | M25: 42 | N25: 50.6 | O25: 48.9 | P25: 48.8 | Q25: 51 | R25: 72.6
B27: Band # | C27: Dewar # | D27: TSKY, K | I27: TSYS, K | N27: (TSYS/ηA) , K | S27: Array SEFD, Jy
D28: @ fL | E28: @ fM1 | F28: @ fM2 | G28: @ fM2 | H28: @ fH | I28: @ fL | J28: @ fM1 | K28: @ fM2 | L28: @ fM2 | M28: @ fH | N28: @ fL | O28: @ fM1 | P28: @ fM2 | Q28: @ fM2 | R28: @ fH | S28: @ fL | T28: @ fM1 | U28: @ fM2 | V28: @ fM2 | W28: @ fH
B29: 1 | C29: A | D29: =Tsky_Lookup(D17,Tsky_Data_Table, PWV, PWV_Values, Elev_Angle) -> 4.4 | E29: 4.5 | F29: 4.6 | G29: =Tsky_Lookup(G17,Tsky_Data_Table, PWV, PWV_Values, Elev_Angle) -> 4.7 | H29: =Tsky_Lookup(H17,Tsky_Data_Table, PWV, PWV_Values, Elev_Angle) -> 4.8 | I29: =N23+D29+D23 -> 18.4955 | J29: 18.5955 | K29: 19.6955 | L29: 20.7955 | M29: 21.8955 | N29: =I29/P17 -> 24.33776054 | O29: 27.35739608 | P29: 28.99655881 | Q29: 30.63117783 | R29: 34.31034634 | S29: =2*k*N29/Ao_array -> 1.072564907 | T29: 1.20564022 | U29: 1.277878108 | V29: 1.349915755 | W29: 1.512056681
B30: 2 | C30: A | D30: 4.8 | E30: 6 | F30: 22.1 | G30: =Tsky_Lookup(G18,Tsky_Data_Table, PWV, PWV_Values, Elev_Angle) -> 11.5 | H30: =Tsky_Lookup(H18,Tsky_Data_Table, PWV, PWV_Values, Elev_Angle) -> 42.9 | I30: 27.8955 | J30: 32.0955 | K30: 50.1955 | L30: 40.5955 | M30: 80.9955 | N30: 36.81041949 | O30: 46.98836358 | P30: 75.5944009 | Q30: 62.51328539 | R30: 136.1207941 | S30: 1.622234884 | T30: 2.070776796 | U30: 3.331444625 | V30: 2.754959972 | W30: 5.998842276
B31: 3 | C31: A | D31: =Tsky_Lookup(D19,Tsky_Data_Table, "1mm", PWV_Values, Elev_Angle) -> 68.3 | E31: =Tsky_Lookup(E19,Tsky_Data_Table, "1mm", PWV_Values, Elev_Angle) -> 22.8 | F31: =Tsky_Lookup(F19,Tsky_Data_Table, "1mm", PWV_Values, Elev_Angle) -> 15.4 | G31: =Tsky_Lookup(G19,Tsky_Data_Table, "1mm", PWV_Values, Elev_Angle) -> 16.9 | H31: =Tsky_Lookup(H19,Tsky_Data_Table, "1mm", PWV_Values, Elev_Angle) -> 112.3 | I31: 122.9955 | J31: 75.7955 | K31: 68.2955 | L31: 71.9955 | M31: 188.9955 | N31: 180.5928899 | O31: 119.0574613 | P31: 111.2165407 | Q31: 133.7276145 | R31: =M31/T19 -> 393.8392549 | S31: 7.958727172 | T31: 5.24686134 | U31: 4.901312032 | V31: 5.89337487 | W31: 17.35649272

Sheet Rel. Sensitivity
E2: Precipitable Water Vapor (PWV) = | F2: 6mm | J2: Elevation Angle (deg) = | K2: 45 | P2: Surface Accuracy (μm RMS) = | Q2: 160
B129: W-Band data for the plots (From external cascade analysis spreadsheet tool):
B130: f, GHz: | C130: 70 | D130: 75 | E130: 80 | F130: 85 | G130: 90 | H130: 95 | I130: 100 | J130: 105 | K130: 110 | L130: 112 | M130: 114 | N130: 115 | O130: 116
B131: Trx, K: | C131: 50.6 | D131: 48.3 | E131: 50.2 | F131: 48.3 | G131: 49 | H131: 50.1 | I131: 51.3 | J131: 50.5 | K131: 50.4 | L131: 50.4 | M131: 52.3 | N131: 54.1 | O131: 72.6
B132: Tsky, K: | C132: =Tsky_Lookup(C130,Tsky_Data_Table, "1mm", PWV_Values, Elev_Angle) -> 68.3 | D132: 34.1 | E132: 22.8 | F132: 17.8 | G132: 15.4 | H132: 14.5 | I132: 14.8 | J132: 16.9 | K132: 24.7 | L132: 33.5 | M132: 53.6 | N132: 74.6 | O132: 112.3
B133: Tspill, K: | C133: =Spill_Greg(Elev_Angle) -> 4.0955 | D133: 4.0955 | E133: 4.0955 | F133: 4.0955 | G133: 4.0955 | H133: 4.0955 | I133: 4.0955 | J133: 4.0955 | K133: 4.0955 | L133: 4.0955 | M133: 4.0955 | N133: 4.0955 | O133: 4.0955
B134: Tsys, K: | C134: =SUM(C131:C133)+T_IRD -> 123.9955 | D134: =SUM(D131:D133)+T_IRD -> 87.4955 | E134: =SUM(E131:E133)+T_IRD -> 78.0955 | F134: 71.1955 | G134: 69.4955 | H134: 69.6955 | I134: 71.1955 | J134: 72.4955 | K134: 80.1955 | L134: 88.9955 | M134: 110.9955 | N134: 133.7955 | O134: =SUM(O131:O133)+T_IRD -> 189.9955
B135: ηI: | C135: 0.849 | D135: 0.85775 | E135: 0.8665 | F135: 0.87525 | G135: 0.884 | H135: 0.883 | I135: 0.882 | J135: 0.881 | K135: 0.88 | L135: 0.8797 | M135: 0.8974 | N135: 0.8791 | O135: 0.879
B136: ηRuze: | C136: =Ruze(C130,Sigma_ngVLA) -> 0.8021967244 | D136: 0.7764587028 | E136: 0.7498581467 | F136: 0.7225420727 | G136: 0.6946570399 | H136: 0.666347874 | I136: 0.6377564592 | J136: 0.6090206096 | K136: 0.5802730325 | L136: 0.5687993138 | M136: 0.5573518714 | N136: 0.5516403942 | O136: 0.5459383307
B137: Tsys/ηA, K: | C137: =C134/(C135*C136) -> 182.0611785 | D137: =D134/(D135*D136) -> 131.3731546 | E137: 120.1927657 | F137: 112.5789735 | G137: 113.1706936 | H137: 118.4521691 | I137: 126.5695084 | J137: 135.1148712 | K137: 157.0489147 | L137: 177.8584043 | M137: 221.9166271 | N137: 275.8971198 | O137: 395.9231101
B138: SEFD, Jy: | C138: =2*k*C137/Ao_array -> 8.023434638 | D138: 5.789613841 | E138: 5.296894194 | F138: 4.961354434 | G138: 4.987431534 | H138: 5.220186118 | I138: 5.577917194 | J138: 5.95451126 | K138: 6.921144379 | L138: 7.838218414 | M138: 9.77986393 | N138: 12.1587838 | O138: 17.4483282

Sheet Perf Summary
B1: Performance Summary Page (for presentations)
B178: Band # | C178: fL GHz | D178: fM GHz | E178: fH GHz | F178: BW GHZ | G178: Aperture Eff., ηA | J178: Spillover, K | M178: TRX, K | Q178: TLNA, K
G179: @ fL | H179: @ fM | I179: @ fH | J179: @ fL | K179: @ fM | L179: @ fH | M179: @ fL | N179: @ fM | O179: @ fH | Q179: @ fL | R179: @ fM | S179: @ fH
B180: 1 | C180: =Reference!D21 -> 1.2 | D180: =SQRT(C180*E180) -> 2.049390153 | E180: =Reference!F21 -> 3.5 | F180: =E180-C180 -> 2.3 | G180: =Reference!D30 -> 0.7999481849 | H180: =Reference!E30 -> 0.7948498264 | I180: =Reference!F30 -> 0.7395923697 | J180: =Reference!G30 -> 12.8 | K180: =Reference!H30 -> 10.1 | L180: =Reference!I30 -> 4 | M180: =Reference!M30 -> 9.9 | N180: =Reference!N30 -> 10.3 | O180: =Reference!O30 -> 13.8 | Q180: =Reference!J30 -> 2.6 | R180: =Reference!K30 -> 2.8 | S180: =Reference!L30 -> 5
B181: 2 | C181: =Reference!D22 -> 3.5 | D181: 6.561249881 | E181: =Reference!F22 -> 12.3 | F181: 8.8 | G181: =Reference!D31 -> 0.7995593186 | H181: =Reference!E31 -> 0.778491082 | I181: =Reference!F31 -> 0.7647779337 | J181: =Reference!G31 -> 12.8 | K181: =Reference!H31 -> 7 | L181: =Reference!I31 -> 3.9 | M181: =Reference!M31 -> 13.4 | N181: =Reference!N31 -> 15.4 | O181: =Reference!O31 -> 14.4 | Q181: =Reference!J31 -> 6.7 | R181: =Reference!K31 -> 7.2 | S181: =Reference!L31 -> 5
B182: 3 | C182: =Reference!D23 -> 12.3 | D182: 15.87923172 | E182: =Reference!F23 -> 20.5 | F182: 8.2 | G182: =Reference!D32 -> 0.8432421632 | H182: =Reference!E32 -> 0.8740305996 | I182: =Reference!F32 -> 0.8625404992 | J182: =Reference!G32 -> 4.0955 | K182: =Reference!H32 -> 4.0955 | L182: =Reference!I32 -> 4.0955 | M182: =Reference!M32 -> 13.9 | N182: =Reference!N32 -> 16.9 | O182: =Reference!O32 -> 18.6 | Q182: =Reference!J32 -> 5 | R182: =Reference!K32 -> 8 | S182: =Reference!L32 -> 8.7
B183: 4 | C183: =Reference!D24 -> 20.5 | D183: =SQRT(C183*E183) -> 26.40075756 | E183: =Reference!F24 -> 34 | F183: 13.5 | G183: =Reference!D33 -> 0.8331022569 | H183: =Reference!E33 -> 0.8567156672 | I183: =Reference!F33 -> 0.8344627938 | J183: =Reference!G33 -> 4.0955 | K183: =Reference!H33 -> 4.0955 | L183: =Reference!I33 -> 4.0955 | M183: =Reference!M33 -> 15.4 | N183: =Reference!N33 -> 16.2 | O183: =Reference!O33 -> 19.5 | Q183: =Reference!J33 -> 5.7 | R183: =Reference!K33 -> 6 | S183: =Reference!L33 -> 7.8
B184: 5 | C184: =Reference!D25 -> 30.5 | D184: 39.24601891 | E184: =Reference!F25 -> 50.5 | F184: 20 | G184: =Reference!D34 -> 0.8142086448 | H184: =Reference!E34 -> 0.8248295867 | I184: =Reference!F34 -> 0.7837381407 | J184: =Reference!G34 -> 4.0955 | K184: =Reference!H34 -> 4.0955 | L184: =Reference!I34 -> 4.0955 | M184: =Reference!M34 -> 19.1 | N184: =Reference!N34 -> 20.4 | O184: =Reference!O34 -> 26.5 | Q184: =Reference!J34 -> 7.8 | R184: =Reference!K34 -> 8.4 | S184: =Reference!L34 -> 14.1
B185: 6 | C185: =Reference!D26 -> 70 | D185: 90.11104261 | E185: =Reference!F26 -> 116 | F185: 46 | G185: =Reference!D35 -> 0.681065019 | H185: =Reference!E35 -> 0.6135246496 | I185: =Reference!F35 -> 0.4798797927 | J185: =Reference!G35 -> 4.0955 | K185: =Reference!H35 -> 4.0955 | L185: =Reference!I35 -> 4.0955 | M185: =Reference!M35 -> 50.6 | N185: =Reference!N35 -> 49 | O185: =Reference!O35 -> 72.6 | Q185: =Reference!J35 -> 25 | R185: =Reference!K35 -> 26 | S185: =Reference!L35 -> 42
B187: Band # | C187: TFEED K | D187: TSKY, K | G187: TSYS, K | J187: (TSYS/ηA), K | M187: Array SEFD, Jy | Q187: ~TRAD K
D188: @ fL | E188: @ fM | F188: @ fH | G188: @ fL | H188: @ fM | I188: @ fH | J188: @ fL | K188: @ fM | L188: @ fH | M188: @ fL | N188: @ fM | O188: @ fH
B189: 1 | C189: 80 | D189: =Reference!D39 -> 4.4 | E189: =Reference!E39 -> 4.5 | F189: =Reference!F39 -> 4.6 | G189: =Reference!G39 -> 28.1 | H189: =Reference!H39 -> 25.9 | I189: =Reference!I39 -> 23.4 | J189: =Reference!J39 -> 35.12727516 | K189: =Reference!K39 -> 32.58477154 | L189: =Reference!L39 -> 31.63905005 | M189: =Reference!M39 -> 1.548058727 | N189: =Reference!N39 -> 1.436010613 | O189: =Reference!O39 -> 1.394332675 | Q189: 1.4
B190: 2 | C190: 20 | D190: =Reference!D40 -> 4.6 | E190: =Reference!E40 -> 4.7 | F190: =Reference!F40 -> 5.3 | G190: =Reference!G40 -> 31.8 | H190: =Reference!H40 -> 28.1 | I190: =Reference!I40 -> 24.6 | J190: =Reference!J40 -> 39.77190843 | K190: =Reference!K40 -> 36.09546808 | L190: =Reference!L40 -> 32.16620004 | M190: =Reference!M40 -> 1.752747677 | N190: =Reference!N40 -> 1.590726981 | O190: =Reference!O40 -> 1.417564171 | Q190: 2
B191: 3 | C191: 20 | D191: =Reference!D41 -> 5.3 | E191: =Reference!E41 -> 6.3 | F191: =Reference!F41 -> 13.6 | G191: =Reference!G41 -> 24.2955 | H191: =Reference!H41 -> 28.2955 | I191: =Reference!I41 -> 37.2955 | J191: =Reference!J41 -> 28.81200806 | K191: =Reference!K41 -> 32.37358053 | L191: =Reference!L41 -> 43.2391291 | M191: =Reference!M41 -> 1.269744958 | N191: =Reference!N41 -> 1.426703427 | O191: =Reference!O41 -> 1.905548064 | Q191: 2
B192: 4 | C192: 20 | D192: =Reference!D42 -> 13.6 | E192: =Reference!E42 -> 12.1 | F192: =Reference!F42 -> 12.4 | G192: =Reference!G42 -> 34.0955 | H192: =Reference!H42 -> 33.3955 | I192: =Reference!I42 -> 36.9955 | J192: =Reference!J42 -> 40.92594843 | K192: =Reference!K42 -> 38.98084426 | L192: =Reference!L42 -> 44.33451111 | M192: =Reference!M42 -> 1.80360621 | N192: =Reference!N42 -> 1.717885486 | O192: =Reference!O42 -> 1.953821539 | Q192: 3.5
B193: 5 | C193: 20 | D193: =Reference!D43 -> 11.1 | E193: =Reference!E43 -> 16.9 | F193: =Reference!F43 -> 70.3 | G193: =Reference!G43 -> 35.2955 | H193: =Reference!H43 -> 42.3955 | I193: =Reference!I43 -> 101.8955 | J193: =Reference!J43 -> 43.34945376 | K193: =Reference!K43 -> 51.39910193 | L193: =Reference!L43 -> 130.0121746 | M193: =Reference!M43 -> 1.91041007 | N193: =Reference!N43 -> 2.265157999 | O193: =Reference!O43 -> 5.729635465 | Q193: 3.5
B194: 6 | C194: 20 | D194: 68.3 | E194: 15.4 | F194: 112.3 | G194: =M185+D194+J185 -> 122.9955 | H194: =N185+E194+K185 -> 68.4955 | I194: =O185+F194+L185 -> 188.9955 | J194: =G194/G185 -> 180.5928899 | K194: =H194/H185 -> 111.6426211 | L194: =I194/I185 -> 393.8392549 | M194: =2*k*J194/Ao_array -> 7.958727172 | N194: =2*k*K194/Ao_array -> 4.920089393 | O194: =2*k*L194/Ao_array -> 17.35649272 | Q194: 5
D195: (Band 6 in this table alone uses PWV by 1mm by default, regardless of PWV set for other bands)

Sheet Tsky Data
A1: Sky Temperature Modeled Data for VLA Site, 1-120 GHz, PWV of 1mm, 6mm and 13mm, at Zenith, 45 degrees
B3: Zenith Elevation | E3: 45 Degree Elevation | J3: (Data courtesy Dr. Bryan Butler, NRAO, July 2016)
A4: Frequency | B4: Tsky (K) at PWV = | E4: Tsky (K) at PWV =
A5: GHz | B5: 1mm | C5: 6mm | D5: 13mm | E5: 1mm | F5: 6mm | G5: 13mm
A6: 1 | B6: 3.9 | C6: 3.9 | D6: 3.9 | E6: 4.4 | F6: 4.4 | G6: 4.4
A7: =A6+0.1 -> 1.1 | B7: 3.9 | C7: 3.9 | D7: 3.9 | E7: 4.4 | F7: 4.4 | G7: 4.4
A8: 1.2 | B8: 3.9 | C8: 3.9 | D8: 3.9 | E8: 4.4 | F8: 4.4 | G8: 4.4
A9: 1.3 | B9: 3.9 | C9: 3.9 | D9: 3.9 | E9: 4.4 | F9: 4.4 | G9: 4.4
A10: 1.4 | B10: 3.9 | C10: 3.9 | D10: 3.9 | E10: 4.5 | F10: 4.4 | G10: 4.5
A11: 1.5 | B11: 4 | C11: 3.9 | D11: 4 | E11: 4.5 | F11: 4.5 | G11: 4.5
A12: 1.6 | B12: 4 | C12: 4 | D12: 4 | E12: 4.5 | F12: 4.5 | G12: 4.5
A13: 1.7 | B13: 4 | C13: 4 | D13: 4 | E13: 4.5 | F13: 4.5 | G13: 4.5
A14: 1.8 | B14: 4 | C14: 4 | D14: 4 | E14: 4.5 | F14: 4.5 | G14: 4.5
A15: 1.9 | B15: 4 | C15: 4 | D15: 4 | E15: 4.5 | F15: 4.5 | G15: 4.5
A16: 2 | B16: 4 | C16: 4 | D16: 4 | E16: 4.5 | F16: 4.5 | G16: 4.5
A17: 2.1 | B17: 4 | C17: 4 | D17: 4 | E17: 4.5 | F17: 4.5 | G17: 4.5
A18: 2.2 | B18: 4 | C18: 4 | D18: 4 | E18: 4.5 | F18: 4.5 | G18: 4.5
A19: 2.3 | B19: 4 | C19: 4 | D19: 4 | E19: 4.5 | F19: 4.5 | G19: 4.5
A20: 2.4 | B20: 4 | C20: 4 | D20: 4 | E20: 4.5 | F20: 4.5 | G20: 4.5
A21: 2.5 | B21: 4 | C21: 4 | D21: 4 | E21: 4.5 | F21: 4.5 | G21: 4.6
A22: 2.6 | B22: 4 | C22: 4 | D22: 4 | E22: 4.5 | F22: 4.5 | G22: 4.6
A23: 2.7 | B23: 4 | C23: 4 | D23: 4 | E23: 4.6 | F23: 4.5 | G23: 4.6
A24: 2.8 | B24: 4 | C24: 4 | D24: 4 | E24: 4.6 | F24: 4.5 | G24: 4.6
A25: 2.9 | B25: 4 | C25: 4 | D25: 4 | E25: 4.6 | F25: 4.5 | G25: 4.6
A26: 3 | B26: 4 | C26: 4 | D26: 4 | E26: 4.6 | F26: 4.5 | G26: 4.6
A27: 3.1 | B27: 4 | C27: 4 | D27: 4 | E27: 4.6 | F27: 4.6 | G27: 4.6
A28: 3.2 | B28: 4 | C28: 4 | D28: 4 | E28: 4.6 | F28: 4.6 | G28: 4.6
A29: 3.3 | B29: 4 | C29: 4 | D29: 4 | E29: 4.6 | F29: 4.6 | G29: 4.6
A30: 3.4 | B30: 4 | C30: 4 | D30: 4.1 | E30: 4.6 | F30: 4.6 | G30: 4.6
A31: 3.5 | B31: 4 | C31: 4 | D31: 4.1 | E31: 4.6 | F31: 4.6 | G31: 4.6
A32: 3.6 | B32: 4 | C32: 4 | D32: 4.1 | E32: 4.6 | F32: 4.6 | G32: 4.6
A33: 3.7 | B33: 4 | C33: 4 | D33: 4.1 | E33: 4.6 | F33: 4.6 | G33: 4.6
A34: 3.8 | B34: 4 | C34: 4 | D34: 4.1 | E34: 4.6 | F34: 4.6 | G34: 4.6
A35: 3.9 | B35: 4 | C35: 4 | D35: 4.1 | E35: 4.6 | F35: 4.6 | G35: 4.6
A36: 4 | B36: 4 | C36: 4 | D36: 4.1 | E36: 4.6 | F36: 4.6 | G36: 4.6
A37: 4.1 | B37: 4 | C37: 4 | D37: 4.1 | E37: 4.6 | F37: 4.6 | G37: 4.7
A38: 4.2 | B38: 4 | C38: 4 | D38: 4.1 | E38: 4.6 | F38: 4.6 | G38: 4.7
A39: 4.3 | B39: 4 | C39: 4 | D39: 4.1 | E39: 4.6 | F39: 4.6 | G39: 4.7
A40: 4.4 | B40: 4 | C40: 4.1 | D40: 4.1 | E40: 4.6 | F40: 4.6 | G40: 4.7
A41: 4.5 | B41: 4 | C41: 4.1 | D41: 4.1 | E41: 4.6 | F41: 4.6 | G41: 4.7
A42: 4.6 | B42: 4.1 | C42: 4.1 | D42: 4.1 | E42: 4.6 | F42: 4.6 | G42: 4.7
A43: 4.7 | B43: 4.1 | C43: 4.1 | D43: 4.1 | E43: 4.6 | F43: 4.6 | G43: 4.7
A44: 4.8 | B44: 4.1 | C44: 4.1 | D44: 4.1 | E44: 4.6 | F44: 4.6 | G44: 4.7
A45: 4.9 | B45: 4.1 | C45: 4.1 | D45: 4.1 | E45: 4.6 | F45: 4.6 | G45: 4.7
A46: 5 | B46: 4.1 | C46: 4.1 | D46: 4.1 | E46: 4.6 | F46: 4.6 | G46: 4.7
A47: 5.1 | B47: 4.1 | C47: 4.1 | D47: 4.1 | E47: 4.6 | F47: 4.6 | G47: 4.7
A48: 5.2 | B48: 4.1 | C48: 4.1 | D48: 4.1 | E48: 4.6 | F48: 4.6 | G48: 4.7
A49: 5.3 | B49: 4.1 | C49: 4.1 | D49: 4.1 | E49: 4.6 | F49: 4.7 | G49: 4.7
A50: 5.4 | B50: 4.1 | C50: 4.1 | D50: 4.1 | E50: 4.6 | F50: 4.7 | G50: 4.7
A51: 5.5 | B51: 4.1 | C51: 4.1 | D51: 4.2 | E51: 4.6 | F51: 4.7 | G51: 4.8
A52: 5.6 | B52: 4.1 | C52: 4.1 | D52: 4.2 | E52: 4.6 | F52: 4.7 | G52: 4.8
A53: 5.7 | B53: 4.1 | C53: 4.1 | D53: 4.2 | E53: 4.6 | F53: 4.7 | G53: 4.8
A54: 5.8 | B54: 4.1 | C54: 4.1 | D54: 4.2 | E54: 4.6 | F54: 4.7 | G54: 4.8
A55: 5.9 | B55: 4.1 | C55: 4.1 | D55: 4.2 | E55: 4.6 | F55: 4.7 | G55: 4.8
A56: 6 | B56: 4.1 | C56: 4.1 | D56: 4.2 | E56: 4.6 | F56: 4.7 | G56: 4.8
A57: 6.1 | B57: 4.1 | C57: 4.1 | D57: 4.2 | E57: 4.7 | F57: 4.7 | G57: 4.8
A58: 6.2 | B58: 4.1 | C58: 4.1 | D58: 4.2 | E58: 4.7 | F58: 4.7 | G58: 4.8
A59: 6.3 | B59: 4.1 | C59: 4.1 | D59: 4.2 | E59: 4.7 | F59: 4.7 | G59: 4.8
A60: 6.4 | B60: 4.1 | C60: 4.1 | D60: 4.2 | E60: 4.7 | F60: 4.7 | G60: 4.8
A61: 6.5 | B61: 4.1 | C61: 4.1 | D61: 4.2 | E61: 4.7 | F61: 4.7 | G61: 4.8
A62: 6.6 | B62: 4.1 | C62: 4.1 | D62: 4.2 | E62: 4.7 | F62: 4.7 | G62: 4.9
A63: 6.7 | B63: 4.1 | C63: 4.1 | D63: 4.2 | E63: 4.7 | F63: 4.7 | G63: 4.9
A64: 6.8 | B64: 4.1 | C64: 4.1 | D64: 4.2 | E64: 4.7 | F64: 4.7 | G64: 4.9
A65: 6.9 | B65: 4.1 | C65: 4.1 | D65: 4.3 | E65: 4.7 | F65: 4.7 | G65: 4.9
A66: 7 | B66: 4.1 | C66: 4.2 | D66: 4.3 | E66: 4.7 | F66: 4.8 | G66: 4.9
A67: 7.1 | B67: 4.1 | C67: 4.2 | D67: 4.3 | E67: 4.7 | F67: 4.8 | G67: 4.9
A68: 7.2 | B68: 4.1 | C68: 4.2 | D68: 4.3 | E68: 4.7 | F68: 4.8 | G68: 4.9
A69: 7.3 | B69: 4.1 | C69: 4.2 | D69: 4.3 | E69: 4.7 | F69: 4.8 | G69: 4.9
A70: 7.4 | B70: 4.1 | C70: 4.2 | D70: 4.3 | E70: 4.7 | F70: 4.8 | G70: 4.9
A71: 7.5 | B71: 4.1 | C71: 4.2 | D71: 4.3 | E71: 4.7 | F71: 4.8 | G71: 5
A72: 7.6 | B72: 4.1 | C72: 4.2 | D72: 4.3 | E72: 4.7 | F72: 4.8 | G72: 5
A73: =A72+0.1 -> 7.7 | B73: 4.1 | C73: 4.2 | D73: 4.3 | E73: 4.7 | F73: 4.8 | G73: 5
A74: 7.8 | B74: 4.1 | C74: 4.2 | D74: 4.3 | E74: 4.7 | F74: 4.8 | G74: 5
A75: 7.9 | B75: 4.1 | C75: 4.2 | D75: 4.3 | E75: 4.7 | F75: 4.8 | G75: 5
A76: 8 | B76: 4.1 | C76: 4.2 | D76: 4.3 | E76: 4.7 | F76: 4.8 | G76: 5
A77: 8.1 | B77: 4.1 | C77: 4.2 | D77: 4.4 | E77: 4.7 | F77: 4.8 | G77: 5
A78: 8.2 | B78: 4.1 | C78: 4.2 | D78: 4.4 | E78: 4.7 | F78: 4.8 | G78: 5.1
A79: 8.3 | B79: 4.1 | C79: 4.2 | D79: 4.4 | E79: 4.7 | F79: 4.9 | G79: 5.1
A80: 8.4 | B80: 4.1 | C80: 4.2 | D80: 4.4 | E80: 4.7 | F80: 4.9 | G80: 5.1
A81: 8.5 | B81: 4.1 | C81: 4.2 | D81: 4.4 | E81: 4.7 | F81: 4.9 | G81: 5.1
A82: 8.6 | B82: 4.2 | C82: 4.2 | D82: 4.4 | E82: 4.8 | F82: 4.9 | G82: 5.1
A83: 8.7 | B83: 4.2 | C83: 4.2 | D83: 4.4 | E83: 4.8 | F83: 4.9 | G83: 5.1
A84: 8.8 | B84: 4.2 | C84: 4.3 | D84: 4.4 | E84: 4.8 | F84: 4.9 | G84: 5.1
A85: 8.9 | B85: 4.2 | C85: 4.3 | D85: 4.4 | E85: 4.8 | F85: 4.9 | G85: 5.2
A86: 9 | B86: 4.2 | C86: 4.3 | D86: 4.4 | E86: 4.8 | F86: 4.9 | G86: 5.2
A87: 9.1 | B87: 4.2 | C87: 4.3 | D87: 4.5 | E87: 4.8 | F87: 4.9 | G87: 5.2
A88: 9.2 | B88: 4.2 | C88: 4.3 | D88: 4.5 | E88: 4.8 | F88: 4.9 | G88: 5.2
A89: 9.3 | B89: 4.2 | C89: 4.3 | D89: 4.5 | E89: 4.8 | F89: 4.9 | G89: 5.2
A90: 9.4 | B90: 4.2 | C90: 4.3 | D90: 4.5 | E90: 4.8 | F90: 5 | G90: 5.2
A91: 9.5 | B91: 4.2 | C91: 4.3 | D91: 4.5 | E91: 4.8 | F91: 5 | G91: 5.3
A92: 9.6 | B92: 4.2 | C92: 4.3 | D92: 4.5 | E92: 4.8 | F92: 5 | G92: 5.3
A93: 9.7 | B93: 4.2 | C93: 4.3 | D93: 4.5 | E93: 4.8 | F93: 5 | G93: 5.3
A94: 9.8 | B94: 4.2 | C94: 4.3 | D94: 4.5 | E94: 4.8 | F94: 5 | G94: 5.3
A95: 9.9 | B95: 4.2 | C95: 4.3 | D95: 4.6 | E95: 4.8 | F95: 5 | G95: 5.3
A96: 10 | B96: 4.2 | C96: 4.3 | D96: 4.6 | E96: 4.8 | F96: 5 | G96: 5.3
A97: 10.1 | B97: 4.2 | C97: 4.4 | D97: 4.6 | E97: 4.8 | F97: 5 | G97: 5.4
A98: 10.2 | B98: 4.2 | C98: 4.4 | D98: 4.6 | E98: 4.8 | F98: 5 | G98: 5.4
A99: 10.3 | B99: 4.2 | C99: 4.4 | D99: 4.6 | E99: 4.8 | F99: 5.1 | G99: 5.4
A100: 10.4 | B100: 4.2 | C100: 4.4 | D100: 4.6 | E100: 4.8 | F100: 5.1 | G100: 5.4
A101: 10.5 | B101: 4.2 | C101: 4.4 | D101: 4.6 | E101: 4.9 | F101: 5.1 | G101: 5.4
A102: 10.6 | B102: 4.2 | C102: 4.4 | D102: 4.7 | E102: 4.9 | F102: 5.1 | G102: 5.5
A103: 10.7 | B103: 4.2 | C103: 4.4 | D103: 4.7 | E103: 4.9 | F103: 5.1 | G103: 5.5
A104: 10.8 | B104: 4.2 | C104: 4.4 | D104: 4.7 | E104: 4.9 | F104: 5.1 | G104: 5.5
A105: 10.9 | B105: 4.2 | C105: 4.4 | D105: 4.7 | E105: 4.9 | F105: 5.1 | G105: 5.5
A106: 11 | B106: 4.2 | C106: 4.4 | D106: 4.7 | E106: 4.9 | F106: 5.1 | G106: 5.6
A107: 11.1 | B107: 4.3 | C107: 4.4 | D107: 4.7 | E107: 4.9 | F107: 5.2 | G107: 5.6
A108: 11.2 | B108: 4.3 | C108: 4.5 | D108: 4.8 | E108: 4.9 | F108: 5.2 | G108: 5.6
A109: 11.3 | B109: 4.3 | C109: 4.5 | D109: 4.8 | E109: 4.9 | F109: 5.2 | G109: 5.6
A110: 11.4 | B110: 4.3 | C110: 4.5 | D110: 4.8 | E110: 4.9 | F110: 5.2 | G110: 5.6
A111: 11.5 | B111: 4.3 | C111: 4.5 | D111: 4.8 | E111: 4.9 | F111: 5.2 | G111: 5.7
A112: 11.6 | B112: 4.3 | C112: 4.5 | D112: 4.8 | E112: 4.9 | F112: 5.2 | G112: 5.7
A113: 11.7 | B113: 4.3 | C113: 4.5 | D113: 4.8 | E113: 4.9 | F113: 5.2 | G113: 5.7
A114: 11.8 | B114: 4.3 | C114: 4.5 | D114: 4.9 | E114: 4.9 | F114: 5.3 | G114: 5.7
A115: 11.9 | B115: 4.3 | C115: 4.5 | D115: 4.9 | E115: 4.9 | F115: 5.3 | G115: 5.8
A116: 12 | B116: 4.3 | C116: 4.5 | D116: 4.9 | E116: 5 | F116: 5.3 | G116: 5.8
A117: 12.1 | B117: 4.3 | C117: 4.5 | D117: 4.9 | E117: 5 | F117: 5.3 | G117: 5.8
A118: 12.2 | B118: 4.3 | C118: 4.6 | D118: 4.9 | E118: 5 | F118: 5.3 | G118: 5.9
A119: 12.3 | B119: 4.3 | C119: 4.6 | D119: 5 | E119: 5 | F119: 5.3 | G119: 5.9
A120: 12.4 | B120: 4.3 | C120: 4.6 | D120: 5 | E120: 5 | F120: 5.4 | G120: 5.9
A121: 12.5 | B121: 4.3 | C121: 4.6 | D121: 5 | E121: 5 | F121: 5.4 | G121: 6
A122: 12.6 | B122: 4.3 | C122: 4.6 | D122: 5 | E122: 5 | F122: 5.4 | G122: 6
A123: 12.7 | B123: 4.3 | C123: 4.6 | D123: 5 | E123: 5 | F123: 5.4 | G123: 6
A124: 12.8 | B124: 4.3 | C124: 4.6 | D124: 5.1 | E124: 5 | F124: 5.4 | G124: 6
A125: 12.9 | B125: 4.3 | C125: 4.7 | D125: 5.1 | E125: 5 | F125: 5.5 | G125: 6.1
A126: 13 | B126: 4.4 | C126: 4.7 | D126: 5.1 | E126: 5 | F126: 5.5 | G126: 6.1
A127: 13.1 | B127: 4.4 | C127: 4.7 | D127: 5.1 | E127: 5 | F127: 5.5 | G127: 6.2
A128: 13.2 | B128: 4.4 | C128: 4.7 | D128: 5.2 | E128: 5 | F128: 5.5 | G128: 6.2
A129: 13.3 | B129: 4.4 | C129: 4.7 | D129: 5.2 | E129: 5.1 | F129: 5.5 | G129: 6.2
A130: 13.4 | B130: 4.4 | C130: 4.7 | D130: 5.2 | E130: 5.1 | F130: 5.6 | G130: 6.3
A131: 13.5 | B131: 4.4 | C131: 4.7 | D131: 5.3 | E131: 5.1 | F131: 5.6 | G131: 6.3
A132: 13.6 | B132: 4.4 | C132: 4.8 | D132: 5.3 | E132: 5.1 | F132: 5.6 | G132: 6.3
A133: 13.7 | B133: 4.4 | C133: 4.8 | D133: 5.3 | E133: 5.1 | F133: 5.6 | G133: 6.4
A134: 13.8 | B134: 4.4 | C134: 4.8 | D134: 5.3 | E134: 5.1 | F134: 5.6 | G134: 6.4
A135: 13.9 | B135: 4.4 | C135: 4.8 | D135: 5.4 | E135: 5.1 | F135: 5.7 | G135: 6.5
A136: 14 | B136: 4.4 | C136: 4.8 | D136: 5.4 | E136: 5.1 | F136: 5.7 | G136: 6.5
A137: =A136+0.1 -> 14.1 | B137: 4.4 | C137: 4.8 | D137: 5.4 | E137: 5.1 | F137: 5.7 | G137: 6.6
A138: 14.2 | B138: 4.4 | C138: 4.9 | D138: 5.5 | E138: 5.1 | F138: 5.7 | G138: 6.6
A139: 14.3 | B139: 4.4 | C139: 4.9 | D139: 5.5 | E139: 5.2 | F139: 5.8 | G139: 6.7
A140: 14.4 | B140: 4.4 | C140: 4.9 | D140: 5.5 | E140: 5.2 | F140: 5.8 | G140: 6.7
A141: 14.5 | B141: 4.5 | C141: 4.9 | D141: 5.6 | E141: 5.2 | F141: 5.8 | G141: 6.8
A142: 14.6 | B142: 4.5 | C142: 4.9 | D142: 5.6 | E142: 5.2 | F142: 5.9 | G142: 6.8
A143: 14.7 | B143: 4.5 | C143: 5 | D143: 5.7 | E143: 5.2 | F143: 5.9 | G143: 6.9
A144: 14.8 | B144: 4.5 | C144: 5 | D144: 5.7 | E144: 5.2 | F144: 5.9 | G144: 6.9
A145: 14.9 | B145: 4.5 | C145: 5 | D145: 5.7 | E145: 5.2 | F145: 6 | G145: 7
A146: 15 | B146: 4.5 | C146: 5 | D146: 5.8 | E146: 5.2 | F146: 6 | G146: 7
A147: 15.1 | B147: 4.5 | C147: 5.1 | D147: 5.8 | E147: 5.2 | F147: 6 | G147: 7.1
A148: 15.2 | B148: 4.5 | C148: 5.1 | D148: 5.9 | E148: 5.3 | F148: 6.1 | G148: 7.2
A149: 15.3 | B149: 4.5 | C149: 5.1 | D149: 5.9 | E149: 5.3 | F149: 6.1 | G149: 7.2
A150: 15.4 | B150: 4.5 | C150: 5.1 | D150: 6 | E150: 5.3 | F150: 6.1 | G150: 7.3
A151: 15.5 | B151: 4.5 | C151: 5.2 | D151: 6 | E151: 5.3 | F151: 6.2 | G151: 7.4
A152: 15.6 | B152: 4.5 | C152: 5.2 | D152: 6.1 | E152: 5.3 | F152: 6.2 | G152: 7.5
A153: 15.7 | B153: 4.6 | C153: 5.2 | D153: 6.1 | E153: 5.3 | F153: 6.3 | G153: 7.5
A154: 15.8 | B154: 4.6 | C154: 5.2 | D154: 6.2 | E154: 5.3 | F154: 6.3 | G154: 7.6
A155: 15.9 | B155: 4.6 | C155: 5.3 | D155: 6.2 | E155: 5.3 | F155: 6.3 | G155: 7.7
A156: 16 | B156: 4.6 | C156: 5.3 | D156: 6.3 | E156: 5.4 | F156: 6.4 | G156: 7.8
A157: 16.1 | B157: 4.6 | C157: 5.3 | D157: 6.4 | E157: 5.4 | F157: 6.4 | G157: 7.9
A158: 16.2 | B158: 4.6 | C158: 5.4 | D158: 6.4 | E158: 5.4 | F158: 6.5 | G158: 8
A159: 16.3 | B159: 4.6 | C159: 5.4 | D159: 6.5 | E159: 5.4 | F159: 6.5 | G159: 8.1
A160: 16.4 | B160: 4.6 | C160: 5.5 | D160: 6.6 | E160: 5.4 | F160: 6.6 | G160: 8.2
A161: 16.5 | B161: 4.6 | C161: 5.5 | D161: 6.7 | E161: 5.4 | F161: 6.6 | G161: 8.3
A162: 16.6 | B162: 4.7 | C162: 5.5 | D162: 6.7 | E162: 5.5 | F162: 6.7 | G162: 8.4
A163: 16.7 | B163: 4.7 | C163: 5.6 | D163: 6.8 | E163: 5.5 | F163: 6.8 | G163: 8.5
A164: 16.8 | B164: 4.7 | C164: 5.6 | D164: 6.9 | E164: 5.5 | F164: 6.8 | G164: 8.6
A165: 16.9 | B165: 4.7 | C165: 5.7 | D165: 7 | E165: 5.5 | F165: 6.9 | G165: 8.7
A166: 17 | B166: 4.7 | C166: 5.7 | D166: 7.1 | E166: 5.5 | F166: 7 | G166: 8.9
A167: 17.1 | B167: 4.7 | C167: 5.8 | D167: 7.2 | E167: 5.5 | F167: 7 | G167: 9
A168: 17.2 | B168: 4.7 | C168: 5.8 | D168: 7.3 | E168: 5.6 | F168: 7.1 | G168: 9.2
A169: 17.3 | B169: 4.7 | C169: 5.9 | D169: 7.4 | E169: 5.6 | F169: 7.2 | G169: 9.3
A170: 17.4 | B170: 4.8 | C170: 5.9 | D170: 7.5 | E170: 5.6 | F170: 7.3 | G170: 9.5
A171: 17.5 | B171: 4.8 | C171: 6 | D171: 7.6 | E171: 5.6 | F171: 7.3 | G171: 9.6
A172: 17.6 | B172: 4.8 | C172: 6.1 | D172: 7.7 | E172: 5.7 | F172: 7.4 | G172: 9.8
A173: 17.7 | B173: 4.8 | C173: 6.1 | D173: 7.9 | E173: 5.7 | F173: 7.5 | G173: 10
A174: 17.8 | B174: 4.8 | C174: 6.2 | D174: 8 | E174: 5.7 | F174: 7.6 | G174: 10.2
A175: 17.9 | B175: 4.8 | C175: 6.3 | D175: 8.2 | E175: 5.7 | F175: 7.7 | G175: 10.4
A176: 18 | B176: 4.9 | C176: 6.3 | D176: 8.3 | E176: 5.8 | F176: 7.8 | G176: 10.6
A177: 18.1 | B177: 4.9 | C177: 6.4 | D177: 8.5 | E177: 5.8 | F177: 7.9 | G177: 10.8
A178: 18.2 | B178: 4.9 | C178: 6.5 | D178: 8.6 | E178: 5.8 | F178: 8.1 | G178: 11.1
A179: 18.3 | B179: 4.9 | C179: 6.6 | D179: 8.8 | E179: 5.8 | F179: 8.2 | G179: 11.3
A180: 18.4 | B180: 4.9 | C180: 6.7 | D180: 9 | E180: 5.9 | F180: 8.3 | G180: 11.6
A181: 18.5 | B181: 5 | C181: 6.8 | D181: 9.2 | E181: 5.9 | F181: 8.5 | G181: 11.9
A182: 18.6 | B182: 5 | C182: 6.9 | D182: 9.4 | E182: 5.9 | F182: 8.6 | G182: 12.2
A183: 18.7 | B183: 5 | C183: 7 | D183: 9.7 | E183: 6 | F183: 8.8 | G183: 12.5
A184: 18.8 | B184: 5 | C184: 7.1 | D184: 9.9 | E184: 6 | F184: 8.9 | G184: 12.8
A185: 18.9 | B185: 5.1 | C185: 7.3 | D185: 10.2 | E185: 6 | F185: 9.1 | G185: 13.2
A186: 19 | B186: 5.1 | C186: 7.4 | D186: 10.4 | E186: 6.1 | F186: 9.3 | G186: 13.6
A187: 19.1 | B187: 5.1 | C187: 7.5 | D187: 10.7 | E187: 6.1 | F187: 9.5 | G187: 14
A188: 19.2 | B188: 5.2 | C188: 7.7 | D188: 11.1 | E188: 6.2 | F188: 9.7 | G188: 14.4
A189: 19.3 | B189: 5.2 | C189: 7.8 | D189: 11.4 | E189: 6.2 | F189: 9.9 | G189: 14.9
A190: 19.4 | B190: 5.2 | C190: 8 | D190: 11.7 | E190: 6.3 | F190: 10.2 | G190: 15.4
A191: 19.5 | B191: 5.3 | C191: 8.2 | D191: 12.1 | E191: 6.3 | F191: 10.4 | G191: 15.9
A192: 19.6 | B192: 5.3 | C192: 8.4 | D192: 12.5 | E192: 6.4 | F192: 10.7 | G192: 16.5
A193: 19.7 | B193: 5.3 | C193: 8.6 | D193: 12.9 | E193: 6.4 | F193: 11 | G193: 17.1
A194: 19.8 | B194: 5.4 | C194: 8.8 | D194: 13.4 | E194: 6.5 | F194: 11.3 | G194: 17.7
A195: 19.9 | B195: 5.4 | C195: 9 | D195: 13.9 | E195: 6.5 | F195: 11.6 | G195: 18.4
A196: 20 | B196: 5.5 | C196: 9.3 | D196: 14.4 | E196: 6.6 | F196: 12 | G196: 19.1
A197: 20.1 | B197: 5.5 | C197: 9.6 | D197: 15 | E197: 6.7 | F197: 12.3 | G197: 19.9
A198: 20.2 | B198: 5.6 | C198: 9.8 | D198: 15.6 | E198: 6.8 | F198: 12.7 | G198: 20.7
A199: 20.3 | B199: 5.6 | C199: 10.1 | D199: 16.2 | E199: 6.8 | F199: 13.1 | G199: 21.6
A200: 20.4 | B200: 5.7 | C200: 10.4 | D200: 16.9 | E200: 6.9 | F200: 13.6 | G200: 22.5
A201: =A200+0.1 -> 20.5 | B201: 5.7 | C201: 10.8 | D201: 17.6 | E201: 7 | F201: 14 | G201: 23.5
... 995 more rows

Sheet Ant. Calcs (hidden)
A1: Antenna Efficiency Calculations, Array Sensitivity Comparison of VLA vs ngVLA
A3: Antenna optical configuration: | B3: Dual Offset Cassegrain or Gregorian, low feedarm, shaped optics
A4: Primary aperture diam (m): | B4: 18
A5: Secondary aperture diam (m): | B5: ~5
A6: f/D ratio: | B6: 0.55 | C6: [Note 1]
A7: Subtended beam angle (deg): | B7: =FDRatioToAngle(F_to_D) -> 97.77581923 | C7: [Note 1]
A8: Total RMS surface accuracy (um): | B8: =Sigma_ngVLA -> 160 | C8: [Note 2]
A10: Frequency, GHz | B10: 2 | C10: 10 | D10: 30 | E10: 50 | F10: 100 | G10: 120 | H10: Notes
A11: Required Aperture Efficiency, ηA | B11: 0.75 | C11: 0.75 | D11: 0.72 | E11: 0.64 | F11: 0.4 | G11: 0.3 | H11: [1]
A12: Ruze Efficiency, ηR | B12: =Ruze(B10,Sigma_ngVLA) -> 0.9998200967 | C12: 0.9955121129 | D12: 0.9603265545 | E12: 0.8936422976 | F12: 0.6377564592 | G12: 0.5232424938 | H12: [3]
A13: Remaining Efficiency Budget | B13: =B11/B12 -> 0.7501349518 | C13: =C11/C12 -> 0.7533810893 | D13: =D11/D12 -> 0.7497449661 | E13: =E11/E12 -> 0.7161702191 | F13: 0.6271986653 | G13: 0.5733479287 | H13: [4]
A15: VLA and ngVLA Sensitivity Comparison (R. Selina, 3/27/2017)
A16: Frequency, GHz | B16: =B10 -> 2 | C16: 10 | D16: 30 | E16: 50 | F16: 100 | G16: 120 | H16: Notes
A17: VLA Key Stats
A18: VLA Aperture Efficiency | B18: =Ruze(B10,635)*0.8 -> 0.7977360829 | C18: =Ruze(C10,635)*0.8 -> 0.7452830097 | D18: 0.41 | E18: =Ruze(E10,635)*0.8 -> 0.1361039814
A19: VLA Geometric Collecting Area (m^2) | B19: =27*PI()*(12.5)^2 -> 13253.59401
A20: VLA Effective Collecting Area (m^2) | B20: =$B19*B18 -> 10572.87017 | C20: =$B19*C18 -> 9877.678431 | D20: =$B19*D18 -> 5433.973543 | E20: =$B19*E18 -> 1803.866912 | F20: =$B19*G18 -> 0 | G20: =$B19*H18 -> 0
A21: VLA A_eff / Tsys | B21: =B20/'VLA-like'!K27 -> 580.7095284 | C21: =C20/'VLA-like'!K29 -> 557.8461844 | D21: =D20/'VLA-like'!K32 -> 160.2619933 | E21: =E20/'VLA-like'!K33 -> 19.56327131
A23: ngVLA Key Stats
A24: ngVLA Geometric Collecting Area (m^2) | B24: =D20*10/D11 -> 75471.85476 | H24: [5]
A25: ngVLA Effective Collecting Area (m^2) | B25: =$B24*B11 -> 56603.89107 | C25: 56603.89107 | D25: 54339.73543 | E25: 48301.98705 | F25: 30188.74191 | G25: 22641.55643
A26: ngVLA A_eff / Tsys | B26: =B25/Reference!H39 -> 2185.47842 | C26: =C25/Reference!G41 -> 2329.80968 | D26: =D25/Reference!G43 -> 1539.565538 | E26: =E25/Reference!I43 -> 474.0345457 | F26: =F25/Reference!H44 -> 434.3985137 | G26: =G25/Reference!I44 -> 119.1689089
A28: Performance Ratios
A29: A_geom Ratio (ngVLA / VLA) | B29: =B24/B19 -> 5.694444444
A30: A_eff Ratio (ngVLA / VLA) | B30: =B25/B20 -> 5.35369206 | C30: =C25/C20 -> 5.730485302 | D30: 10 | E30: 26.77691282
A31: A_eff / Tsys Ratio (ngVLA / VLA) | B31: =B26/B21 -> 3.763462304 | C31: 4.176437421 | D31: 9.606554277 | E31: 24.23084248
A33: Notes:
A35: [1] - Subtended angle corresponds to overall f/D ratio entered (primary + secondary optics).
A36: Example values shown are for wideband and ultra-wideband feed configurations only.
A37: [2] - Values from P. Napier et. al., "Strawman Antenna Requirements", ver. 3. Entered on 'Rel. Sensitivity' tab.
A38: [3] - Ruze efficiency is calculated from RMS surface accuracy entered on 'Rel. Sensitivity' tab, and shown above.
A39: [4] - Includes all other contributions to aperture efficiency aside from Ruze (illumination, spillover, blockage, phase, etc.)
A40: [5] - Set to a value that forces A_eff of the ngVLA to be 10 times that of the VLA.

Sheet STRESS (hidden)
B1: VLA Model Tsys (with weather radome added) vs Stress Test Data
B3: Band | C3: fL GHz | D3: fM GHz | E3: fH GHz | F3: TRX, K | I3: Spillover, K | L3: TSKY, K | O3: Feed Radome, ~K | R3: TSYS, K | V3: Stress Test | X3: Model | Y3: Delta
F4: @ fL | G4: @ fM | H4: @ fH | I4: @ fL | J4: @ fM | K4: @ fH | L4: @ fL | M4: @ fM | N4: @ fH | O4: @ fL | P4: @ fM | Q4: @ fH | R4: @ fL | S4: @ fM | T4: @ fH | V4: fc | W4: TSYS | X4: TSYS | Y4: TSYS
B5: L | C5: =VLA!D14 -> 1.2 | D5: =VLA!E14 -> 1.6 | E5: =VLA!F14 -> 2 | F5: =VLA!H25 -> 13.8 | G5: =VLA!I25 -> 12.9 | H5: =VLA!J25 -> 17.3 | I5: =VLA!Q14 -> 18.6 | J5: =VLA!R14 -> 15 | K5: =VLA!S14 -> 12 | L5: =VLA!K25 -> 4.4 | M5: =VLA!L25 -> 4.5 | N5: =VLA!M25 -> 4.5 | O5: 0 | P5: 0 | Q5: 1 | R5: =L5+F5+I5+O5 -> 36.8 | S5: =M5+G5+J5+P5 -> 32.4 | T5: =N5+H5+K5+Q5 -> 34.8 | V5: =AVERAGE(1388,1516)/1000 -> 1.452 | W5: =F53 -> 31.98039216 | X5: =AVERAGE(R5,S5,S5) -> 33.86666667 | Y5: =(W5-X5)/X5 -> -0.05569708198
B6: S | C6: =VLA!D15 -> 2 | D6: =VLA!E15 -> 3 | E6: =VLA!F15 -> 4 | F6: =VLA!H26 -> 17 | G6: =VLA!I26 -> 16.3 | H6: =VLA!J26 -> 24.2 | I6: =VLA!Q15 -> 11 | J6: =VLA!R15 -> 8 | K6: =VLA!S15 -> 7 | L6: =VLA!K26 -> 4.5 | M6: =VLA!L26 -> 4.5 | N6: =VLA!M26 -> 4.6 | O6: 1 | P6: 1 | Q6: 2 | R6: =F6+L6+I6+O6 -> 33.5 | S6: =G6+M6+J6+P6 -> 29.8 | T6: 37.8 | V6: =AVERAGE(3020,3148)/1000 -> 3.084 | W6: =J53 -> 31.6 | X6: =AVERAGE(S6) -> 29.8 | Y6: 0.06040268456
B7: C | C7: =VLA!D16 -> 4 | D7: =VLA!E16 -> 6 | E7: =VLA!F16 -> 8 | F7: =VLA!H27 -> 12.3 | G7: =VLA!I27 -> 11.5 | H7: =VLA!J27 -> 11.8 | I7: =VLA!Q16 -> 5 | J7: =VLA!R16 -> 5 | K7: =VLA!S16 -> 5 | L7: =VLA!K27 -> 4.6 | M7: =VLA!L27 -> 4.7 | N7: =VLA!M27 -> 4.8 | O7: 2 | P7: 3 | Q7: 4 | R7: 23.9 | S7: 24.2 | T7: =H7+N7+K7+Q7 -> 25.6 | V7: =AVERAGE(4832,4960)/1000 -> 4.896 | W7: =N53 -> 28.67 | X7: =AVERAGE(R7:S7) -> 24.05 | Y7: 0.1920997921
B8: X | C8: =VLA!D17 -> 8 | D8: =VLA!E17 -> 10 | E8: =VLA!F17 -> 12 | F8: =VLA!H28 -> 11.8 | G8: =VLA!I28 -> 10.7 | H8: =VLA!J28 -> 14.9 | I8: =VLA!Q17 -> 6 | J8: =VLA!R17 -> 6 | K8: =VLA!S17 -> 6 | L8: =VLA!K28 -> 4.8 | M8: =VLA!L28 -> 5 | N8: =VLA!M28 -> 5.3 | O8: =_xlfn.CEILING.MATH(5*(C8/80)) -> 1 | P8: =_xlfn.CEILING.MATH(5*(D8/80)) -> 1 | Q8: 1 | R8: 23.6 | S8: 22.7 | T8: 27.2 | V8: =AVERAGE(8332,8460)/1000 -> 8.396 | W8: =R53 -> 29.80898876 | X8: =AVERAGE(R8:S8) -> 23.15 | Y8: 0.287645303
B9: Ku | C9: =VLA!D18 -> 12 | D9: =VLA!E18 -> 15 | E9: =VLA!F18 -> 18 | F9: =VLA!H29 -> 16 | G9: =VLA!I29 -> 10.8 | H9: =VLA!J29 -> 15.1 | I9: =VLA!Q18 -> 6 | J9: =VLA!R18 -> 6 | K9: =VLA!S18 -> 6 | L9: =VLA!K29 -> 5.3 | M9: =VLA!L29 -> 6 | N9: =VLA!M29 -> 7.8 | O9: =_xlfn.CEILING.MATH(5*(C9/80)) -> 1 | P9: =_xlfn.CEILING.MATH(5*(D9/80)) -> 1 | Q9: =_xlfn.CEILING.MATH(5*(E9/80)) -> 2 | R9: 28.3 | S9: =G9+M9+J9+P9 -> 23.8 | T9: 30.9 | V9: =AVERAGE(14936,15064)/1000 -> 15 | W9: =V53 -> 30.12371134 | X9: =AVERAGE(S9) -> 23.8 | Y9: 0.2657021572
B10: K | C10: =VLA!D19 -> 18 | D10: =VLA!E19 -> 22.25 | E10: =VLA!F19 -> 26.5 | F10: =VLA!H30 -> 22.7 | G10: =VLA!I30 -> 12.7 | H10: =VLA!J30 -> 23.6 | I10: =VLA!Q19 -> 6 | J10: =VLA!R19 -> 6 | K10: =VLA!S19 -> 6 | L10: =VLA!K30 -> 7.8 | M10: =VLA!L30 -> 22.8 | N10: =VLA!M30 -> 12.1 | O10: 2 | P10: 2 | Q10: 2 | R10: 38.5 | S10: 43.5 | T10: 43.7 | V10: =AVERAGE(24372,24500)/1000 -> 24.436 | W10: =Z53 -> 44.79047619 | X10: =AVERAGE(S10:T10) -> 43.6 | Y10: 0.02730449978
B11: Ka | C11: =VLA!D20 -> 26.5 | D11: =VLA!E20 -> 33.25 | E11: =VLA!F20 -> 40 | F11: =VLA!H31 -> 29.9 | G11: =VLA!I31 -> 16.5 | H11: =VLA!J31 -> 31.7 | I11: =VLA!Q20 -> 6 | J11: =VLA!R20 -> 6 | K11: =VLA!S20 -> 6 | L11: =VLA!K31 -> 12.1 | M11: =VLA!L31 -> 12.1 | N11: =VLA!M31 -> 17.8 | O11: 2 | P11: 3 | Q11: 3 | R11: 50 | S11: 37.6 | T11: 58.5 | V11: =AVERAGE(33432,33560)/1000 -> 33.496 | W11: =AD53 -> 49.59405941 | X11: =AVERAGE(S11) -> 37.6 | Y11: 0.3189909416
B12: Q | C12: =VLA!D21 -> 40 | D12: =VLA!E21 -> 45 | E12: =VLA!F21 -> 50 | F12: =VLA!H32 -> 35.2 | G12: =VLA!I32 -> 32.2 | H12: =VLA!J32 -> 42.8 | I12: =VLA!Q21 -> 6 | J12: =VLA!R21 -> 6 | K12: =VLA!S21 -> 6 | L12: =VLA!K32 -> 17.8 | M12: =VLA!L32 -> 28.4 | N12: =VLA!M32 -> 62.5 | O12: 3 | P12: 3 | Q12: 4 | R12: 62 | S12: 69.6 | T12: =H12+N12+K12+Q12 -> 115.3 | V12: =AVERAGE(40936,41064)/1000 -> 41 | W12: =AH53 -> 71.23762376 | X12: =AVERAGE(R12:S12) -> 65.8 | Y12: 0.082638659
B15: Stress Test: 2017 APR06_0511 Report
B16: Tsys, On Sky | G16: MODEL INPUTS (Rel. Sensitivity Tab)
B17: Source Elev.: | D17: 39.4 - 40 deg | G17: =Elev_Angle -> 45 | H17: deg
B18: Estimated PWV: | D18: 3.9 to 4.6mm | G18: =PWV -> 6mm | H18: PWV | M18: (From South Baldy monitoring station)
B19: Wind Speed: | D19: < 5 m/s
B20: API RMS Phase: | D20: 5-10 degrees
B21: Sky Condition: | D21: Mostly clear, Stratus Clouds
B22: Precipitation: | D22: None
B24: ANT | C24: L Band | G24: S Band | K24: C Band | O24: X Band | S24: U Band | W24: K Band | AA24: A Band | AE24: Q Band
C25: IF A | D25: IF B | E25: IF C | F25: IF D | G25: IF A | H25: IF B | I25: IF C | J25: IF D | K25: IF A | L25: IF B | M25: IF C | N25: IF D | O25: IF A | P25: IF B | Q25: IF C | R25: IF D | S25: IF A | T25: IF B | U25: IF C | V25: IF D | W25: IF A | X25: IF B | Y25: IF C | Z25: IF D | AA25: IF A | AB25: IF B | AC25: IF C | AD25: IF D | AE25: IF A | AF25: IF B | AG25: IF C | AH25: IF D
B26: 1 | C26: 40 | D26: 39 | E26: 40 | F26: 40 | G26: 34 | H26: 33 | I26: 33 | J26: 33 | K26: 27 | L26: 26 | M26: 26 | N26: 26 | O26: 29 | P26: 29 | Q26: 30 | R26: 30 | S26: 36 | T26: 35 | U26: 33 | V26: 33 | W26: 51 | X26: 49 | Y26: 50 | Z26: 50 | AA26: 49 | AB26: 48 | AC26: 53 | AD26: 52 | AE26: 88 | AF26: 86 | AG26: 80 | AH26: 79
B27: 2 | C27: 37 | D27: 36 | F27: 31 | G27: 33 | H27: 33 | J27: 35 | K27: 23 | L27: 22 | N27: 29 | O27: 31 | P27: 30 | R27: 29 | S27: 28 | T27: 27 | V27: 28 | W27: 42 | X27: 42 | Z27: 45 | AA27: 49 | AB27: 48 | AD27: 50 | AE27: 57 | AF27: 55 | AH27: 62
B28: 3 | C28: 29 | E28: 30 | F28: 30 | I28: 35 | J28: 35 | M28: 33 | N28: 33 | O28: 33 | Q28: 32 | R28: 32 | S28: 34 | U28: 34 | V28: 34 | W28: 46 | Y28: 52 | Z28: 52 | AA28: 46 | AC28: 50 | AD28: 50 | AE28: 78 | AG28: 75 | AH28: 75
B29: 4 | C29: 30 | D29: 30 | E29: 27 | F29: 28 | G29: 33 | H29: 32 | I29: 34 | J29: 33 | K29: 28 | L29: 28 | M29: 29 | N29: 29 | O29: 27 | P29: 27 | Q29: 29 | R29: 29 | S29: 27 | T29: 27 | U29: 24 | V29: 24 | W29: 51 | X29: 51 | Y29: 49 | Z29: 48 | AA29: 57 | AB29: 57
B30: 5 | C30: 32 | D30: 31 | E30: 31 | F30: 31 | G30: 30 | H30: 30 | I30: 33 | J30: 33 | K30: 31 | L30: 30 | M30: 33 | N30: 33 | O30: 28 | P30: 27 | Q30: 28 | R30: 29 | S30: 32 | T30: 31 | U30: 36 | V30: 37 | W30: 47 | X30: 45 | Y30: 44 | Z30: 44 | AA30: 51 | AB30: 49 | AC30: 53 | AD30: 53 | AE30: 57 | AF30: 55 | AG30: 82 | AH30: 83
B31: 6 | C31: 31 | D31: 32 | E31: 34 | F31: 34 | G31: 31 | H31: 32 | I31: 33 | J31: 33 | K31: 23 | L31: 23 | M31: 29 | N31: 29 | O31: 35 | P31: 36 | Q31: 26 | R31: 26 | S31: 35 | T31: 35 | U31: 34 | V31: 34 | W31: 55 | X31: 56 | Y31: 56 | Z31: 55 | AA31: 58 | AB31: 60 | AC31: 54 | AD31: 53 | AE31: 70 | AF31: 71 | AG31: 78 | AH31: 77
B32: 7 | C32: 31 | D32: 30 | E32: 31 | F32: 31 | G32: 30 | H32: 29 | I32: 29 | J32: 29 | K32: 28 | L32: 28 | M32: 26 | N32: 26 | O32: 36 | P32: 35 | Q32: 32 | R32: 32 | S32: 30 | T32: 30 | U32: 29 | V32: 29 | W32: 43 | X32: 42 | Y32: 45 | Z32: 45 | AA32: 58 | AB32: 57 | AC32: 46 | AD32: 45 | AE32: 67 | AF32: 65 | AG32: 74 | AH32: 74
B33: 8 | C33: 28 | D33: 28 | E33: 34 | F33: 34 | G33: 28 | H33: 27 | I33: 30 | J33: 30 | O33: 26 | P33: 26 | Q33: 32 | R33: 33 | S33: 27 | T33: 27 | U33: 29 | V33: 29 | W33: 41 | X33: 41 | Y33: 43 | Z33: 44 | AA33: 50 | AB33: 49 | AC33: 47 | AD33: 47 | AE33: 72 | AF33: 71 | AG33: 72 | AH33: 72
B34: 9 | C34: 35 | D34: 35 | E34: 35 | F34: 35 | G34: 32 | H34: 32 | I34: 33 | J34: 33 | K34: 35 | L34: 35 | M34: 26 | N34: 27 | O34: 34 | P34: 34 | Q34: 34 | R34: 34 | S34: 32 | T34: 31 | U34: 31 | V34: 31 | W34: 46 | X34: 46 | Y34: 46 | Z34: 46 | AA34: 57 | AB34: 58 | AC34: 55 | AD34: 55 | AE34: 84 | AF34: 84 | AG34: 83 | AH34: 84
B35: 10 | C35: 33 | D35: 35 | E35: 32 | F35: 32 | G35: 30 | H35: 32 | I35: 31 | J35: 31 | K35: 29 | L35: 30 | M35: 26 | N35: 26 | S35: 28 | T35: 29 | U35: 31 | V35: 31 | W35: 43 | X35: 46 | Y35: 44 | Z35: 44 | AA35: 48 | AB35: 51 | AC35: 46 | AD35: 46 | AE35: 65 | AF35: 69 | AG35: 69 | AH35: 70
B36: 11 | C36: 29 | D36: 29 | E36: 29 | F36: 29 | G36: 31 | H36: 30 | I36: 32 | J36: 31 | K36: 23 | L36: 23 | M36: 28 | N36: 28 | O36: 34 | P36: 33 | Q36: 33 | R36: 32 | S36: 28 | T36: 28 | U36: 31 | V36: 30 | W36: 48 | X36: 47 | Y36: 45 | Z36: 44 | AA36: 55 | AB36: 54 | AC36: 50 | AD36: 49 | AE36: 52 | AF36: 51 | AG36: 75 | AH36: 73
B37: 12 | C37: 32 | D37: 33 | E37: 28 | F37: 27 | G37: 32 | H37: 33 | I37: 35 | J37: 34 | K37: 29 | L37: 29 | M37: 26 | N37: 25 | W37: 43 | X37: 44 | Y37: 44 | Z37: 43 | AA37: 51 | AB37: 52 | AC37: 57 | AD37: 57 | AE37: 77 | AF37: 79 | AG37: 71 | AH37: 71
B38: 14 | C38: 31 | D38: 31 | E38: 29 | F38: 29 | G38: 32 | H38: 32 | I38: 33 | J38: 33 | K38: 30 | L38: 29 | M38: 35 | N38: 35 | O38: 32 | P38: 32 | Q38: 30 | R38: 31 | S38: 28 | T38: 28 | U38: 23 | V38: 24 | W38: 46 | X38: 45 | Y38: 44 | Z38: 45 | AA38: 55 | AB38: 54 | AC38: 50 | AD38: 51 | AE38: 72 | AF38: 71 | AG38: 80 | AH38: 81
B39: 15 | C39: 28 | D39: 27 | E39: 26 | F39: 26 | G39: 24 | H39: 24 | I39: 23 | J39: 23 | K39: 25 | L39: 25 | M39: 22 | N39: 23 | O39: 22 | P39: 22 | Q39: 35 | R39: 36 | S39: 32 | T39: 32 | U39: 35 | V39: 36 | W39: 38 | X39: 38 | Y39: 44 | Z39: 45 | AA39: 43 | AB39: 43 | AC39: 41 | AD39: 42 | AE39: 58 | AF39: 58 | AG39: 61 | AH39: 63
B40: 16 | C40: 31 | D40: 32 | E40: 31 | F40: 31 | G40: 31 | H40: 32 | I40: 32 | J40: 33 | K40: 33 | L40: 34 | M40: 24 | N40: 24 | O40: 27 | P40: 27 | Q40: 25 | R40: 25 | S40: 26 | T40: 26 | U40: 27 | V40: 27 | W40: 40 | X40: 40 | Y40: 41 | Z40: 42 | AA40: 51 | AB40: 51 | AC40: 38 | AD40: 38 | AE40: 75 | AF40: 75 | AG40: 69 | AH40: 70
B41: 17 | C41: 31 | D41: 31 | E41: 28 | F41: 29 | G41: 31 | H41: 32 | I41: 32 | J41: 33 | K41: 33 | L41: 34 | M41: 33 | N41: 33 | O41: 30 | P41: 31 | Q41: 31 | R41: 31 | S41: 29 | T41: 30 | U41: 30 | V41: 30 | W41: 44 | X41: 45 | Y41: 41 | Z41: 41 | AA41: 42 | AB41: 43 | AC41: 44 | AD41: 44 | AE41: 52 | AF41: 53 | AG41: 67 | AH41: 67
B42: 18 | C42: 29 | D42: 29 | E42: 32 | F42: 32 | G42: 34 | H42: 34 | I42: 34 | J42: 34 | K42: 32 | L42: 33 | M42: 40 | N42: 40 | O42: 36 | P42: 36 | Q42: 28 | R42: 29 | S42: 30 | T42: 30 | U42: 35 | V42: 34 | W42: 45 | X42: 45 | Y42: 45 | Z42: 45 | AA42: 44 | AB42: 45 | AC42: 43 | AD42: 43 | AE42: 66 | AF42: 66 | AG42: 70 | AH42: 70
B43: 19 | C43: 34 | D43: 34 | E43: 34 | F43: 35 | K43: 27 | L43: 28 | M43: 32 | N43: 32 | O43: 33 | P43: 34 | Q43: 31 | R43: 31 | S43: 32 | T43: 33 | U43: 29 | V43: 29 | W43: 40 | X43: 41 | Y43: 43 | Z43: 43 | AA43: 45 | AB43: 47 | AC43: 49 | AD43: 49 | AE43: 78 | AF43: 80 | AG43: 74 | AH43: 75
B44: 20 | G44: 30 | H44: 31 | I44: 31 | K44: 25 | L44: 26 | M44: 27 | O44: 25 | P44: 25 | Q44: 27 | S44: 25 | T44: 26 | U44: 32 | W44: 46 | X44: 48 | Y44: 41 | AA44: 55 | AB44: 57 | AC44: 46 | AE44: 63 | AF44: 66 | AG44: 69
B45: 21 | C45: 33 | D45: 34 | E45: 35 | F45: 34 | G45: 30 | H45: 31 | I45: 31 | J45: 30 | K45: 27 | L45: 28 | M45: 25 | N45: 24 | O45: 22 | P45: 23 | Q45: 25 | R45: 25 | S45: 32 | T45: 33 | U45: 32 | V45: 31 | W45: 48 | X45: 49 | Y45: 54 | Z45: 53 | AA45: 45 | AB45: 46 | AC45: 51 | AD45: 50 | AE45: 63 | AF45: 64 | AG45: 72 | AH45: 71
B46: 22 | C46: 34 | D46: 34 | E46: 34 | F46: 34 | G46: 32 | H46: 32 | I46: 32 | J46: 32 | K46: 30 | L46: 30 | M46: 30 | N46: 31 | S46: 33 | T46: 33 | U46: 30 | V46: 30 | W46: 49 | X46: 49 | Y46: 52 | Z46: 52 | AA46: 58 | AB46: 59 | AC46: 53 | AD46: 53 | AE46: 69 | AF46: 70 | AG46: 67 | AH46: 67
B47: 23 | C47: 34 | D47: 34 | E47: 36 | F47: 36 | G47: 35 | H47: 34 | I47: 35 | J47: 34 | K47: 29 | L47: 28 | M47: 28 | N47: 27 | S47: 30 | T47: 29 | U47: 32 | V47: 31 | W47: 43 | X47: 42 | Y47: 43 | Z47: 41 | AA47: 55 | AB47: 54 | AC47: 47 | AD47: 46 | AE47: 70 | AF47: 69 | AG47: 83 | AH47: 80
B48: 24 | C48: 38 | D48: 37 | E48: 32 | F48: 31 | G48: 31 | H48: 31 | I48: 31 | J48: 31 | K48: 28 | L48: 30 | M48: 29 | N48: 28 | O48: 31 | P48: 32 | Q48: 32 | R48: 31 | S48: 29 | T48: 29 | U48: 26 | V48: 25 | W48: 41 | X48: 41 | Y48: 39 | Z48: 37 | AA48: 41 | AB48: 41 | AC48: 35 | AD48: 34 | AE48: 70 | AF48: 70 | AG48: 70 | AH48: 67
B49: 25 | C49: 33 | D49: 33 | E49: 37 | F49: 36 | G49: 32 | H49: 32 | I49: 32 | J49: 31 | K49: 25 | L49: 26 | M49: 30 | N49: 29 | O49: 28 | P49: 29 | Q49: 30 | R49: 29 | S49: 29 | T49: 29 | U49: 29 | V49: 28 | W49: 42 | X49: 42 | Y49: 46 | Z49: 45 | AA49: 54 | AB49: 55 | AC49: 53 | AD49: 53 | AE49: 78 | AF49: 80 | AG49: 76 | AH49: 74
B50: 26 | C50: 52 | D50: 51 | E50: 24 | F50: 23 | G50: 32 | H50: 31 | I50: 31 | J50: 30 | K50: 25 | L50: 24 | M50: 32 | N50: 31 | O50: 27 | P50: 27 | Q50: 26 | R50: 26 | W50: 40 | X50: 39 | Y50: 36 | Z50: 35 | AA50: 48 | AB50: 47 | AC50: 52 | AD50: 51 | AE50: 51 | AF50: 50 | AG50: 86 | AH50: 83
B51: 27 | C51: 21 | D51: 22 | E51: 26 | F51: 27 | G51: 33 | H51: 34 | I51: 29 | J51: 30 | K51: 27 | L51: 28 | M51: 31 | N51: 32 | O51: 32 | P51: 33 | Q51: 29 | R51: 29 | S51: 28 | T51: 29 | U51: 29 | V51: 29 | W51: 40 | X51: 41 | Y51: 47 | Z51: 47 | AA51: 50 | AB51: 52 | AE51: 78 | AF51: 80 | AG51: 79 | AH51: 80
B52: 28 | C52: 30 | D52: 30 | E52: 30 | F52: 29 | G52: 32 | H52: 31 | I52: 33 | J52: 32 | K52: 35 | L52: 34 | M52: 25 | N52: 24 | O52: 30 | P52: 28 | Q52: 28 | R52: 27 | S52: 28 | T52: 27 | U52: 33 | V52: 32 | W52: 40 | X52: 39 | Y52: 44 | Z52: 43 | AA52: 49 | AB52: 48 | AC52: 49 | AD52: 47 | AE52: 79 | AF52: 77 | AG52: 72 | AH52: 69
B53: AVG | F53: =AVERAGE(C26:F52) -> 31.98039216 | J53: =AVERAGE(G26:J52) -> 31.6 | N53: =AVERAGE(K26:N52) -> 28.67 | R53: =AVERAGE(O26:R52) -> 29.80898876 | V53: =AVERAGE(S26:V52) -> 30.12371134 | Z53: =AVERAGE(W26:Z52) -> 44.79047619 | AD53: =AVERAGE(AA26:AD52) -> 49.59405941 | AH53: =AVERAGE(AE26:AH52) -> 71.23762376
